Workbook

Sheet Home Page (hidden)

Sheet Advisor Details (hidden)
A2: Firm Name | B2: MSA FINANCIAL SERVICES | D2: Advisor Name | E2: MANISH SINGH
B3: MONEY, SECURITY & ASPIRATIONS | D3: Address | E3: KATNI
A4: Contact Details | E4: MADHYA PRADESH
A5: Whatsapp No. | B5: 7974737121 | E5: INDIA
A6: Email address | B6: MANISHSINGH.CFP@GMAIL.COM
A7: Web Site | B7: WWW.MSAFS.IN
A9: Password | B9: Msa@2025
A12: Letter Head Preview
B15: =+E2 -> MANISH SINGH
B16: =+B3 -> MONEY, SECURITY & ASPIRATIONS
B17: =CONCATENATE("Whatsapp No ",B5," Email Id : ",B6," Web site :",B7) -> Whatsapp No 7974737121 Email Id : MANISHSINGH.CFP@GMAIL.COM Web site :WWW.MSAFS.IN
A18: =+CONCATENATE(E3,E4,E5) -> KATNI MADHYA PRADESH INDIA

Sheet HELP (hidden)
A1: STEPS FOR USING ADVANCE EXCEL FINANCIAL PLANNING TOOL
A3: STEP 1 | C3: Copy Blank Sheet to Another Sheet… Enable Macros
A5: STEP 2 | C5: Enter Data in B I S and INPUT sheet
A7: STEP 3 | C7: Take Printout of Existing Investments and Goals
A9: STEP 4 | C9: Go to Emerency Fund Sheet and Map Existing Investments (If Any)
A11: STEP 5 | C11: Go to Retirement Planning Sheet and Map Existing Investments (If Any)
A13: STEP 6 | C13: Go to Child Education & Marriage Sheet (If Any)
A15: STEP 7 | C15: Go to Aspirational Goals Sheet and Map Existing Investments (If Any)
A17: STEP 8 | C17: Back To Data Sheet Point-9 Existing Investments And Map The Goal
A19: STEP 9 | C19: You are Ready For Comprihansive Financial Plan and One Pager Plan

Sheet GOALS FOR CHILDREN (hidden)
A1: 8 | C1: =DATA!G3 -> 2024
A2: EDUCATION & MARRIAGE PROVISION PLANNING
B3: COURSE / CLASS/ STANDARD | C3: =DATA!B8 -> 0 | D3: =DATA!B9 -> 0 | E3: =DATA!B10 -> 0 | F3: NO OF YRS LEFT | G3: PRESENT VALUE REQUIRED | H3: REMARKS IF ANY
A4: =+INPUT!H93 -> 0 | B4: =+INPUT!B93 -> Mayuri Graduation | C4: =+INPUT!F93 -> 0 | F4: =+INPUT!J93 -> 0 | G4: =+INPUT!L93 -> 0
A5: =+INPUT!H94 -> 0 | B5: =+INPUT!B94 -> Mayuri Post Graduation | C5: =+INPUT!F94 -> 0 | F5: =+INPUT!J94 -> 0 | G5: =+INPUT!L94 -> 0
A6: =+INPUT!H95 -> 0 | B6: =+INPUT!B95 -> Heramb Graduation | D6: =+INPUT!F95 -> 0 | F6: =+INPUT!J95 -> 0 | G6: =+INPUT!L95 -> 0
A7: =+INPUT!H96 -> 0 | B7: =+INPUT!B96 -> Heramb Post Graduation | D7: =+INPUT!F96 -> 0 | F7: =+INPUT!J96 -> 0 | G7: =+INPUT!L96 -> 0
A8: =+INPUT!H97 -> 0 | B8: =+INPUT!B97 -> 0 | G8: =+INPUT!L97 -> 0
A9: =+INPUT!H98 -> 0 | B9: =+INPUT!B98 -> 0 | G9: =+INPUT!L98 -> 0
A10: =+INPUT!H99 -> 0 | B10: =+INPUT!B99 -> 0 | G10: =+INPUT!L99 -> 0
A11: =+INPUT!H100 -> 0 | B11: =+INPUT!B100 -> 0 | G11: =+INPUT!L100 -> 0
A12: =+INPUT!H101 -> 0 | B12: =+INPUT!B101 -> 0 | G12: =+INPUT!L101 -> 0
A13: =+INPUT!H102 -> 0 | B13: =+INPUT!B102 -> 0 | G13: =+INPUT!L102 -> 0
A14: =+INPUT!H103 -> 0 | B14: =+INPUT!B103 -> 0 | G14: =+INPUT!L103 -> 0
A15: =+INPUT!H104 -> 0 | B15: =+INPUT!B104 -> 0 | G15: =+INPUT!L104 -> 0
A16: TOTAL | G16: =SUM(G4:G15) -> 0

Sheet B I S
D2: BASIC INFORMATION SHEET (YOUR GROWTH PARTNER)
B4: This Form is the First Step towards Your Financial Freedom, Peace and Prosperity
B6: 1 | C6: Basic Information
B7: Name :-
B8: Address :-
B9: Marital Status : | G9: Immediate Liquid Assets (Saving Balance and FD)
B10: Contact No :-
B11: E-mail ID :-
B12: Date of Birth (DD-MM-YYYY) :- | G12: Total current Value of Financial Assets
B13: Income Source/Occupation :-
B14: Average Household Expenses Per Month :-
B15: Personal Expenses Per Month :-
B16: Total EMI Per Month :- | G16: Total current value of Physical Assets (Except Self Occupied Place & Gold Ornaments)
B17: Average savings and investments Per Month :-
B18: Average Net Family Income Per Month :-
B19: Total Outstanding Loan Amount :-
B20: 2 | C20: Family Details
B21: S.N. | C21: Name of Family Member | D21: Relation | E21: Date of Birth | F21: Dependence Status (Yes / No) | G21: Education | H21: Income Source | I21: Income Per Month | J21: Health Status
B22: 1 | D22: SELF | F22: NO
B23: 2 | D23: SPOUSE | F23: YES
B24: 3 | D24: DOUGHTER | F24: YES
B25: 4 | D25: SON/DOUGHTER
B26: 5 | D26: Father
B27: 6 | D27: Mother
B28: 3 | C28: Currently where all You are investing ?
B40: 4 | C40: What would be your major Financial Goals/ Requirements / Mile Stones that you think important for You and Your family & Also, place them in the order of importance. YES / NO Priority Rank
B42: 1 | C42: Planning for Major Health Problems and Hospitalization | F42: yes
B43: 2 | C43: Income Protection in case of accidental disability | F43: yes
B44: 3 | C44: Income Protection in case of Death | F44: yes
B45: 4 | C45: Guranteed Income provision after retirement | F45: yes
B46: 5 | C46: Children Higher education and marriage | F46: yes
B47: 6 | C47: Emergency Liquidity provision | F47: no
B48: 7 | C48: Short Term to medium Term Goals | F48: yes
B50: 5 | C50: Answer the following Questionaire
B51: S.N. | C51: Questionaire | G51: Answer | H51: Provide details, if any
B52: 1 | C52: At what age Do you want to retire from Job / Business / Profession ?
B53: 2 | C53: How many years income provision would you like to make for your post retired life ?
B54: 3 | C54: Do you have any personal financial or investment advisor ? | G54: No
B55: 4 | C55: Who takes the decision about all financial matters in your family ? | G55: Self
B56: 5 | C56: Have you prepared a 'WILL' ? | G56: No
B57: 6 | C57: Who files your Tax returns ? | G57: CA
B58: 7 | C58: Do you have any pending matters relating to your investment / insurance ? | G58: Yes
B59: 8 | C59: Do you have mediclaim or health insurance policy other than employer ? | G59: Yes
B60: 9 | C60: If Yes, what is the total cover ?
B61: 10 | C61: If Yes, who all are covered in the policy ? | G61: 2A+2C
B62: 11 | C62: Do you have enough life insurance cover to secure your income in case of death ? | G62: No
B63: 12 | C63: If Yes, How much is the cover ?
B64: 13 | C64: Do you have Personal Accident Insurance policy ? | G64: NO
B65: 14 | C65: If Yes, How much is the cover ? | G65: 0
B66: 15 | C66: Do you have critical illness policy ? | G66: NO
B67: 16 | C67: If Yes, How much is the cover ? | G67: 0
B70: Congratulations for Completing Your First Step Towards Financial Freedom, Peace and Prosperity

Sheet INPUT
A1: INPUT
A2: 1 | B2: FAMILY DETAILS
A3: Sr. No. | B3: Name | E3: Relation | G3: DOB ( DD-MM-YYYY) | H3: PAN Number | J3: Occupation
A4: 1 | E4: Self
A5: 2 | E5: Spouse
A6: 3 | E6: Son / Daughter
A7: 4 | E7: Son / Daughter
A8: 5 | E8: Son / Daughter
A9: 6 | E9: Father
A10: 7 | E10: Mother | J10: ='B I S'!H27 -> 0
A12: 2 | B12: NAME | F12: CONTACT NO. | H12: EMAIL
A13: 1 | B13: =+B4 -> 0 | F13: 0 | H13: 0
A14: 2 | B14: =+B5 -> 0
A15: 3 | B15: =+B6 -> 0
A16: 4 | B16: =+B7 -> 0
A18: 3 | B18: FAMILY LIVING EXPENSES / OUT FLOWS
A19: Sr. No. | B19: Consumption Expenses / Family Expenses | E19: Current Monthly Expenses | G19: Yearly Irregular expenses | H19: Annualised Expenses | J19: Post Retirement - Monthly exp.
A20: Household Expenses
A21: 1 | B21: Grocery & Toiletaries | E21: 0 | H21: =G21+(E21*12) -> 0 | J21: =E21*0.8 -> 0
A22: 2 | B22: House - Rent, Maintenance, Repair | E22: 75000 | H22: 900000 | J22: =E22*0.8 -> 60000
A23: 3 | B23: Vehicle - Fuel , Servicing / Conveyance | E23: 0 | H23: 0 | J23: =E23*0.25 -> 0
A24: 4 | B24: Health - Doctor visits , Medicines | E24: 0 | H24: 0 | J24: 0
A25: 5 | B25: Necessities - Electricity, Property tax | E25: 0 | H25: 0 | J25: 0
A26: 6 | B26: House Utilities - Maid, Laundary, Newspaper etc. | E26: 0 | H26: 0 | J26: =E26*0.8 -> 0
A27: 7 | B27: Gadgets - Mobile, TV, Internet, Online subscriptions etc. | E27: 0 | H27: 0 | J27: =G27*1.4 -> 0
A28: Lifestyle Expenses
A29: 1 | B29: Clothes & Accessories | E29: 0 | H29: 0 | J29: 0
A30: 2 | B30: Shopping, Gifts & buying new Gadgets | E30: 0 | H30: 0 | J30: 0
A31: 3 | B31: Dining , Movies, Sports | E31: 0 | H31: 0 | J31: 0
A32: 4 | B32: Coach - Financial, Fitness, Personal | H32: 0 | J32: 0
A33: 5 | B33: Travel, Annual holidays | H33: 0 | J33: =E33*0.8 -> 0
A34: 6 | B34: Charity, Donations etc. | H34: 0 | J34: =E34*0.8 -> 0
A35: 7 | B35: House renovations, Celebrations etc. | H35: 0 | J35: =E35*0.8 -> 0
A36: Dependent Expenses | H36: 0 | J36: =E36*0.8 -> 0
A37: 1 | B37: Children school / college fees | E37: 3400 | H37: 40800 | J37: 2720
A38: 2 | B38: Children pocket money / other expenses | H38: 0 | J38: 0
A39: 3 | B39: Contribution to parents, siblings etc. | H39: 0 | J39: 0
A40: Misc. | H40: 0 | J40: 0
A41: 1 | B41: Personal Expenses | E41: ='B I S'!D15 -> 0 | H41: 0 | J41: 0
A42: 2 | B42: Total Household Expenses | E42: ='B I S'!D14 -> 0 | H42: =G42+(E42*12) -> 0 | J42: =E42*0.8 -> 0
B43: TOTAL | E43: =SUM(E20:F42) -> 78400 | G43: =SUM(G20:G42) -> 0 | H43: =SUM(H20:I42) -> 940800 | J43: =SUM(J20:J42) -> 62720
E44: Monthly Expenses | H44: =+H43/12 -> 78400 | J44: =J43*12 -> 752640
A46: 4 | B46: LOAN DETAILS
A47: S.N. | B47: Details of Loans | G47: EMI | H47: Loan Amount | J47: Outstanding Amt. | L47: Balance Tenure
A48: 1 | B48: Home Loan | G48: 84443 | J48: 8205617
A49: =+A48+1 -> 2 | B49: Car Loan
A50: =+A49+1 -> 3 | B50: Personal Loan
A51: 4 | B51: Education Loan
A52: 5
A53: 6
A54: 7
A55: TOTAL | G55: ='B I S'!D16 -> 0 | H55: =SUM(H48:I54) -> 0 | J55: ='B I S'!D19 -> 0
A57: 5 | B57: FAMILY INFLOWS / INCOME
A58: Sr. No. | B58: Particulars | F58: Gross Income ( Monthly ) | H58: Deductions | J58: Net Income ( Monthly ) | L58: Net Income ( Annual )
A59: 1 | B59: Self Salary | F59: 300000 | J59: =L59/12 -> 223052.5 | L59: 2676630
A60: 2 | B60: Spouse Salary | F60: 150000 | J60: =L60/12 -> 42558.33333 | L60: 510700
A61: 3 | B61: Business Income | L61: =J61*12 -> 0
A62: 4 | B62: Rent Income | L62: 0
A63: 5 | B63: Parents Income | L63: 0
A64: 6 | B64: Childrens Income | L64: 0
A65: 7 | B65: Brother Income | L65: 0
A66: 8 | B66: Sister Income | L66: 0
A67: 9 | B67: Dividend Income | L67: =J67*12 -> 0
A68: 10 | B68: Interest Income | L68: =J68*12 -> 0
A69: 11 | B69: Agri Income | L69: =J69 -> 0
A70: 12 | B70: Other Income | L70: =J70 -> 0
A71: 13 | B71: Annual Bonus / Performance Pay
A72: TOTAL | F72: =SUM(F59:F71) -> 450000 | H72: =SUM(H59:H71) -> 0 | J72: ='B I S'!D18 -> 0 | L72: =SUM(L59:L71) -> 3187330
A74: 6 | B74: ASPIRATIONAL GOALS/ NEEDS/ DREAMS ( excluding children goals & retirement)
A75: Sr. No. | B75: Aspirational Goals / Needs / Dreams | G75: Goal Year | H75: No. of Years left | J75: Inflation rate | L75: Present Value
A76: 1 | B76: Kirtana's wellness Resort | G76: 2034 | H76: =IF(+G76-YEAR(TODAY())>0,+G76-YEAR(TODAY()),0) -> 9 | J76: 0.07
A77: 2 | B77: Kirtana Yoga Office | G77: 2029 | H77: 4 | J77: 0.07
A78: 3 | B78: International Tour | G78: 2029 | H78: 4 | J78: 0.07
A79: 4 | H79: 0 | J79: 0.07
A80: 5 | H80: 0 | J80: 0.07
A81: 6 | H81: 0 | J81: 0.07
A82: 7 | H82: 0 | J82: 0.07
A83: TOTAL | L83: =SUM(L76:M82) -> 0
A85: 7 | B85: ANY EMPLOYER PROVIDED BENEFITS
A86: Sr.No. | B86: Description of Benefit | G86: Amount | H86: Provide details, if required | L86: Scope ( Who are covered)
A87: 1 | B87: Mediclaim - Health Cover
A88: 2 | B88: Life Cover if any ( e.g. group term insurance)
A89: 3 | B89: Accidental Cover if any
A91: 8 | B91: CHILDREN EDUCATION & MARRIAGE PROVISION PLANNING
A92: Sr.No. | B92: Description ( Course / Class / Std.) | F92: At what age money required ? | H92: In which year money required ? | J92: No. of years left | L92: Present Value
A93: 1 | B93: Mayuri Graduation | H93: =IF(F93>0,+YEAR(TODAY())+F93-DATA!I8,0) -> 0 | J93: =IF(+H93-YEAR(TODAY())>0,+H93-YEAR(TODAY()),0) -> 0
A94: 2 | B94: Mayuri Post Graduation | H94: =IF(F94>0,+YEAR(TODAY())+F94-DATA!I8,0) -> 0 | J94: 0
A95: 3 | B95: Heramb Graduation
A96: =+A95+1 -> 4 | B96: Heramb Post Graduation | H96: =IF(F96>0,+YEAR(TODAY())+F96-DATA!I9,0) -> 0 | J96: 0
A97: 5 | H97: 0 | J97: 0
A98: 6 | H98: =IF(F98>0,+YEAR(TODAY())+F98-DATA!I9,0) -> 0 | J98: 0
A99: 7 | H99: =IF(F99>0,+YEAR(TODAY())+F99-DATA!I10,0) -> 0 | J99: 0
A100: 8 | H100: =IF(F100>0,+YEAR(TODAY())+F100-DATA!I10,0) -> 0 | J100: 0
A101: 9 | H101: =IF(F101>0,+YEAR(TODAY())+F101-DATA!I10,0) -> 0 | J101: 0
A102: 10 | H102: =IF(F102>0,+YEAR(TODAY())+F102-DATA!I8,0) -> 0 | J102: 0
A103: 11 | H103: =IF(F103>0,+YEAR(TODAY())+F103-DATA!I9,0) -> 0 | J103: 0
A104: 12 | H104: =IF(F104>0,+YEAR(TODAY())+F104-DATA!I10,0) -> 0 | J104: 0
A106: 9 | B106: FINANCIAL ASSETS & INVESTMENTS
A107: Sr.No. | B107: Particulars | G107: Scheme Name / Account Name | H107: Current Value | J107: Monthly / Yearly Contribution | L107: MLY/QLY/HLY/YLY (12/4/2/1)
A108: 1 | B108: Bank 1 - Savings balance
A109: =+A108+1 -> 2 | B109: Bank 2 - Savings balance
A110: =+A109+1 -> 3 | B110: Bank 3 - Savings balance
A111: 4 | B111: Fixed Deposit - SBI
A112: 5 | B112: Fixed Deposit - Bank …..
A113: 6 | B113: Employee Provident fund (EPF)
A114: 7 | B114: Public Provident Fund (PPF)
A115: 8 | B115: Recurring Deposits (RD)
A116: 9 | B116: Mutual Funds ( Attach separate sheet if no. of schemes are more)
A117: 10 | B117: Post - MIS
A118: 11 | B118: NSC / KVP
A119: 12 | B119: Corporate FD
A120: 13 | B120: Sukanya Samrridhi Yojana
A121: 14 | B121: Shares ( Attach separate sheet if no. of shares are more)
A122: 15 | B122: career transition fund
A123: 16
A124: 17
A125: 18
A126: 19
A127: 20
A128: 21
A129: 22
A130: 23
A131: 24
A132: 25 | B132: Any Other Regular / Irregular Investments
H133: ='B I S'!G13 -> 0 | J133: ='B I S'!D17 -> 0
A135: 10 | B135: NON FINANCIAL ASSETS & INVESTMENTS
A136: Sr.No. | B136: Details of Property | G136: Remarks | I136: Current Value | K136: Any Specific Purpose of This Asset
A138: 1 | B138: Self Occupied Property | G138: SELF
A139: =+A138+1 -> 2 | B139: Gold Ornaments | G139: GOLD
A140: =+A139+1 -> 3 | B140: CAR /BYKE | G140: CAR
A141: 4 | B141: Investment Flat 1 | G141: INVESTMENT
A142: 5 | B142: Investment Flat 2 | G142: INVESTMENT
A143: 6 | B143: PLOT | G143: PLOT
A144: 7 | B144: Gold Coins | G144: GOLD
A145: 8 | B145: Gold Fund / ETF | G145: GOLD
A146: 9 | B146: Ancestral Property | G146: ANCESTRAL
A147: TOTAL | I147: ='B I S'!G18 -> 0
A149: 11 | B149: PURE INSURANCE POLICIES
A150: Sr.No. | B150: Policy Name | G150: Sum Assured | H150: Premium | J150: Premium Mode | L150: Remarks
A151: 1 | B151: Mediclaim 1
A152: 2 | B152: Mediclaim 2
A153: 3 | B153: Top Up Mediclaim Policy
A154: 4 | B154: Critical Illness Policy
A155: 5 | B155: Hospital Cash Benefit Policy
A156: 6 | B156: Specific Illness Policy
A157: 7 | B157: Personal Accident Policy
A158: 8 | B158: Term Insurance
A159: 9 | B159: Parents health insurance
A160: TOTAL | H160: =SUM(H151:I159) -> 0
A162: 12 | B162: INVESTMENTS CUM INSURANCE PLANS
A163: Sr.No. | B163: Policy Name | E163: Policy No. | G163: Sum Assured | H163: Premium | J163: Premium Mode | L163: Remarks
A164: 1 | G164: 0 | H164: 0 | J164: 1
A165: 2
A166: 3
A167: =+A166+1 -> 4
A168: =+A167+1 -> 5
A169: 6
A170: 7
A171: 8
A172: 9
A173: 10
A174: 11
A175: 12
A176: 13
A177: 14
A178: 15
A179: 16
A180: 17
A181: 18
A182: 19
A183: 20
A184: 21
A185: 22
A186: 23
A187: TOTAL PREMIUM & SUM ASSURED | G187: ='B I S'!G63 -> 0 | H187: =SUM(H164:I186) -> 0

Sheet Financial Plan (hidden)
A1: Road Map To Your Financial Success
A30: Comprehensive Financial Plan
A31: Exclusively Prepared for
A32: =+DATA!B6 -> 0
A33: AND FAMILY
A34: =+'Advisor Details'!B2 -> MSA FINANCIAL SERVICES
A36: We Educate People About Effective Money Management Principles to Create True Wealth
A37: =+'Advisor Details'!E2 -> MANISH SINGH
A38: =+'Advisor Details'!E3 -> KATNI
A39: =+'Advisor Details'!E4 -> MADHYA PRADESH
A40: =+'Advisor Details'!E5 -> INDIA
A41: =+CONCATENATE("Contact No. ",'Advisor Details'!B5," Website : ",'Advisor Details'!B7) -> Contact No. 7974737121 Website : WWW.MSAFS.IN
A42: =+'Advisor Details'!B6 -> MANISHSINGH.CFP@GMAIL.COM
A44: Comprehensive Financial Plan
A46: Dear | B46: =+DATA!B6 -> 0
A48: We would like to thank you for providing us with the opportunity of charting your financial plan. As you are aware our objective is to accurately assess your financial needs and to provide quality recommendations and ongoing service in accordance with those needs. Particular consideration has been given to developing a long term plan which will assist you accumulate assets to provide for your long term goals such as your children’s education and marriage, your retirement plans etc while preserving your current lifestyle. This plan and our recommendations are based on the information provided by you through the data collection sheet. Therefore, the plan will be regularly reviewed and updated in accordance with changes in your needs and circumstances. We assure you that all information we have gathered from you will be retained in a secure location in the confines of our office and will remain confidential at all times. Please let us know if you require any clarifications and/or modifications in the plan and we shall proceed accordingly. We look forward to working with you.
A79: Sincerely,
A80: =CONCATENATE("For ",'Advisor Details'!B2) -> For MSA FINANCIAL SERVICES
A83: =+'Advisor Details'!E2 -> MANISH SINGH
A84: =+'Advisor Details'!B3 -> MONEY, SECURITY & ASPIRATIONS
A88: Letter of Engagement
A90: =CONCATENATE("Dear ",+DATA!B6) -> Dear 0
A92: This letter is meant to give you a better understanding on what you may expect from the financial planning process and what our respective obligations are within that process. It will also confirm the terms of our recent discussions regarding financial planning services. As part of each process, you will furnish us with complete and up-to-date information about your personal financial circumstances and investment objectives. Once all relevant information is assimilated, we will analyse your present financial situation, which may include a review of pertinent assets, liabilities, current and projected cash flow, investment portfolios, and tax implications. On the basis of the information you provide, we will produce a written report and recommended action. Your written report will refer to such things as your specific objectives, time horizons, risk profile, tax implications, performance expectations, asset allocation and portfolio management information. All information given to us by you and all recommendations and advice furnished by us to you will be kept confidential between us and will not be disclosed to anyone except as we may agree in writing or as may be required by law. The broad-based custom financial planning service provides a single written report containing recommendations in all relevant areas of your financial wellbeing and may include strategies regarding cash flow, investment portfolio management, retirement planning, income tax and estate planning. The fee for your Comprehensive Financial Plan has been determined by our mutual agreement and is Rs.15,000 and is due upon acceptance of this Engagement Letter. To avoid future misunderstandings, this fee is for the written financial plan alone and the plan shall contain all of our recommendations to you as on the date of its delivery. If you decide to implement our recommendations, we may ask you to make your investments through our company without any obligation on your part. This will be considered as a separate service.
A133: The fees charged to you under this agreement does not take into consideration any commissions, fees that we may receive from various companies for investment products sold through us, for which there may arise a conflict of interests. A review and update of a previously written report, due to events such as changes in tax laws or your personal financial situation, is also available as a new and separate service. This service is to reassess your financial objectives, progress and circumstances to date and make appropriate recommendations. The fee for your Financial Review and Update Plan as determined by our mutual agreement is Rs.7500/-. We emphasize that the financial plan writing service described above are separate, stand-alone advisory services and you are not obligated to make any investments through us. You also are free to associate with any brokerage firm, insurance or real estate agents or other vendors you desire for the implementation of your plan objectives. If at any time you feel that you are dissatisfied with this agreement, you may terminate it by giving a written request. We regard the responsibility for providing competent and reliable services to you are a very important step in maintaining a close and personalized relationship with you. It is a relationship that involves an ongoing exchange of relevant information between you as our valued client and us. We view this interactive relationship as vital to the overall success and achievement of your financial objectives. If you understand and accept the above terms, please sign our agreement below and return one copy of this letter to us. Thank you for confiding in us to assist you in achieving your financial goals and objectives. We look forward to serving you to the best of our ability.
A170: Sincerely,
A171: For ( Your Firm Name)
A174: Your Name
A175: Designation
G176: Client: | H176: =+DATA!B6 -> 0
G177: Signature:
A180: Personal Information
A182: Relationship | C182: Name | F182: DOB | G182: PAN No. | H182: Occupation | I182: Mobile No.
A184: SELF | C184: =+DATA!B6 -> 0 | F184: =+DATA!C6 -> 00:00:00 | G184: =+DATA!H6 -> 0 | H184: =+DATA!E6 -> 00:00:00 | I184: =+DATA!C15 -> 0
A185: Partner
A186: WIFE | C186: =+DATA!B7 -> 0 | F186: =+DATA!C7 -> 00:00:00 | G186: =+DATA!H7 -> 0 | H186: =+DATA!E7 -> 00:00:00 | I186: =+DATA!C16 -> 0
A187: Dependent
A188: CHILD 1 | C188: =+DATA!B8 -> 0 | F188: =+DATA!C8 -> 00:00:00 | G188: =+DATA!H8 -> 0 | H188: =+DATA!G8 -> 00:00:00 | I188: =+DATA!C17 -> 0
A190: CHILD 2 | C190: =+DATA!B9 -> 0 | F190: =+DATA!C9 -> 00:00:00 | G190: =+DATA!H9 -> 0 | H190: =+DATA!G9 -> 00:00:00 | I190: =+DATA!C18 -> 0
A192: CHILD 3 | C192: =+DATA!B10 -> 0 | F192: =+DATA!C10 -> 00:00:00 | G192: =+DATA!H10 -> 0 | H192: =+DATA!G10 -> 00:00:00 | I192: =+DATA!C19 -> 0
A194: MOTHER | C194: =+DATA!B11 -> 0 | F194: =+DATA!C11 -> 00:00:00 | G194: =+DATA!H11 -> 0 | H194: =+DATA!G11 -> 0 | I194: =+DATA!C20 -> 0
A196: FATHER | C196: =+DATA!B12 -> 0 | F196: =+DATA!C12 -> 00:00:00 | G196: =+DATA!H12 -> 0 | H196: =+DATA!G12 -> 0
A200: Assessment of your current Financial Status
A201: Cash Flow Management
A204: Cash Flow Management is a system, not a budget. It allows you to see your financial situation from a long-term, systematic viewpoint. You will see how one move, such as a periodic tax payment, can affect your disbursements for several months prior to, and following, the actual payment. A Personal Cash Flow Management System, if used consistently, can be of great value in helping to gain control of your personal financial situation. It will ensure that there is always cash available to pay bills as they come due. It will also help you save more money in a systematic way. Time is your greatest ally. The more time you have, the less money you will need to save and invest. The less time you have the more money it will take. Procrastination is a deadly enemy of your goal to retire with financial dignity.
A222: Income and Expenditure Statement of the current year
A223: FAMILY INFLOWS / INCOMES
A224: PARTULARS | E224: GROSS MONTHLY | G224: DEDUCTIONS | H224: NET MONTHLY | I224: YEARLY | O224: =+A224 -> PARTULARS | P224: salary
A225: =+DATA!B64 -> Self Salary | E225: =+DATA!C64 -> 300000 | G225: =+DATA!D64 -> 0 | H225: =+DATA!E64 -> 300000 | I225: =+DATA!F64 -> 3600000 | O225: Self Salary | P225: =+E225 -> 300000
A226: =+DATA!B65 -> Spouse Salary | E226: =+DATA!C65 -> 150000 | G226: =+DATA!D65 -> 0 | H226: =+DATA!E65 -> 150000 | I226: =+DATA!F65 -> 1800000 | O226: Spouse Salary | P226: 150000
A227: =+DATA!B66 -> Business Income | E227: =+DATA!C66 -> 0 | G227: =+DATA!D66 -> 0 | H227: =+DATA!E66 -> 0 | I227: =+DATA!F66 -> 0 | O227: Business Income | P227: 0
A228: =+DATA!B67 -> Rent Income | E228: =+DATA!C67 -> 0 | G228: =+DATA!D67 -> 0 | H228: =+DATA!E67 -> 0 | I228: =+DATA!F67 -> 0 | O228: Rent Income | P228: 0
A229: =+DATA!B68 -> Parents Income | E229: =+DATA!C68 -> 0 | G229: =+DATA!D68 -> 0 | H229: =+DATA!E68 -> 0 | I229: =+DATA!F68 -> 0 | O229: Parents Income | P229: 0
A230: =+DATA!B69 -> Childrens Income | E230: =+DATA!C69 -> 0 | G230: =+DATA!D69 -> 0 | H230: =+DATA!E69 -> 0 | I230: =+DATA!F69 -> 0 | O230: Childrens Income | P230: 0
A231: =+DATA!B70 -> Brother Income | E231: =+DATA!C70 -> 0 | G231: =+DATA!D70 -> 0 | H231: =+DATA!E70 -> 0 | I231: =+DATA!F70 -> 0 | O231: Brother Income | P231: 0
A232: =+DATA!B71 -> Sister Income | E232: =+DATA!C71 -> 0 | G232: =+DATA!D71 -> 0 | H232: =+DATA!E71 -> 0 | I232: =+DATA!F71 -> 0 | O232: Sister Income | P232: 0
A233: =+DATA!B72 -> Dividend Income | E233: =+DATA!C72 -> 0 | G233: =+DATA!D72 -> 0 | H233: =+DATA!E72 -> 0 | I233: =+DATA!F72 -> 0 | O233: Dividend Income | P233: 0
A234: =+DATA!B73 -> Interest Income | E234: =+DATA!C73 -> 0 | G234: =+DATA!D73 -> 0 | H234: =+DATA!E73 -> 0 | I234: =+DATA!F73 -> 0 | O234: Interest Income | P234: 0
A235: =+DATA!B74 -> Agri Income | E235: =+DATA!C74 -> 0 | G235: =+DATA!D74 -> 0 | H235: =+DATA!E74 -> 0 | I235: =+DATA!F74 -> 0 | O235: Agri Income | P235: 0
A236: =+DATA!B75 -> Other Income | E236: =+DATA!C75 -> 0 | G236: =+DATA!D75 -> 0 | H236: =+DATA!E75 -> 0 | I236: =+DATA!F75 -> 0 | O236: Other Income | P236: 0
A237: =+DATA!B76 -> 0
A238: =+DATA!B77 -> TOTAL | E238: =SUM(E225:F237) -> 450000 | G238: =SUM(G225:G236) -> 0 | H238: =SUM(H225:H236) -> 450000 | I238: =SUM(I225:I236) -> 5400000
A241: FAMILY LIVING EXPENSES / OUT FLOW
A242: =+DATA!B21 -> CONSUMPTION EXPENSES / FAMILY`S EXPENSES | F242: =+DATA!C21 -> CURRENT MONTHLY EXPENSES | G242: =+DATA!D21 -> YEARLY IRREGULAR EXPENSES | H242: =+DATA!E21 -> ANNUALISED EXPENSES | I242: =+DATA!F21 -> % OF INCOME (Per Anum)
A243: =+DATA!B22 -> 0 | F243: =+DATA!C22 -> 0 | G243: =+DATA!D22 -> 0 | H243: =+DATA!E22 -> 0 | I243: =+DATA!F22 -> 0 | Q243: =+A243 -> 0 | W243: =+F243 -> 0
A244: =+DATA!B23 -> Grocery & Toiletaries | F244: =+DATA!C23 -> 0 | G244: =+DATA!D23 -> 0 | H244: =+DATA!E23 -> 0 | I244: =+DATA!F23 -> 0 | Q244: Grocery & Toiletaries | W244: 0
A245: =+DATA!B24 -> House - Rent, Maintenance, Repair | F245: =+DATA!C24 -> 75000 | G245: =+DATA!D24 -> 0 | H245: =+DATA!E24 -> 900000 | I245: =+DATA!F24 -> 0.1666666667 | Q245: House - Rent, Maintenance, Repair | W245: 75000
A246: =+DATA!B25 -> Vehicle - Fuel , Servicing / Conveyance | F246: =+DATA!C25 -> 0 | G246: =+DATA!D25 -> 0 | H246: =+DATA!E25 -> 0 | I246: =+DATA!F25 -> 0 | Q246: Vehicle - Fuel , Servicing / Conveyance | W246: 0
A247: =+DATA!B26 -> Health - Doctor visits , Medicines | F247: =+DATA!C26 -> 0 | G247: =+DATA!D26 -> 0 | H247: =+DATA!E26 -> 0 | I247: =+DATA!F26 -> 0 | Q247: Health - Doctor visits , Medicines | W247: 0
A248: =+DATA!B27 -> Necessities - Electricity, Property tax | F248: =+DATA!C27 -> 0 | G248: =+DATA!D27 -> 0 | H248: =+DATA!E27 -> 0 | I248: =+DATA!F27 -> 0 | Q248: Necessities - Electricity, Property tax | W248: 0
A249: =+DATA!B28 -> House Utilities - Maid, Laundary, Newspaper etc. | F249: =+DATA!C28 -> 0 | G249: =+DATA!D28 -> 0 | H249: =+DATA!E28 -> 0 | I249: =+DATA!F28 -> 0 | Q249: House Utilities - Maid, Laundary, Newspaper etc. | W249: 0
A250: =+DATA!B29 -> Gadgets - Mobile, TV, Internet, Online subscriptions etc. | F250: =+DATA!C29 -> 0 | G250: =+DATA!D29 -> 0 | H250: =+DATA!E29 -> 0 | I250: =+DATA!F29 -> 0 | Q250: Gadgets - Mobile, TV, Internet, Online subscriptions etc. | W250: 0
A251: =+DATA!B30 -> 0 | F251: =+DATA!C30 -> 0 | G251: =+DATA!D30 -> 0 | H251: =+DATA!E30 -> 0 | I251: =+DATA!F30 -> 0 | Q251: 0 | W251: 0
A252: =+DATA!B31 -> Clothes & Accessories | F252: =+DATA!C31 -> 0 | G252: =+DATA!D31 -> 0 | H252: =+DATA!E31 -> 0 | I252: =+DATA!F31 -> 0 | Q252: Clothes & Accessories | W252: 0
A253: =+DATA!B32 -> Shopping, Gifts & buying new Gadgets | F253: =+DATA!C32 -> 0 | G253: =+DATA!D32 -> 0 | H253: =+DATA!E32 -> 0 | I253: =+DATA!F32 -> 0 | Q253: Shopping, Gifts & buying new Gadgets | W253: 0
A254: =+DATA!B33 -> Dining , Movies, Sports | F254: =+DATA!C33 -> 0 | G254: =+DATA!D33 -> 0 | H254: =+DATA!E33 -> 0 | I254: =+DATA!F33 -> 0 | Q254: Dining , Movies, Sports | W254: 0
A255: =+DATA!B34 -> Coach - Financial, Fitness, Personal | F255: =+DATA!C34 -> 0 | G255: =+DATA!D34 -> 0 | H255: =+DATA!E34 -> 0 | I255: =+DATA!F34 -> 0 | Q255: Coach - Financial, Fitness, Personal | W255: 0
A256: =+DATA!B35 -> Travel, Annual holidays | F256: =+DATA!C35 -> 0 | G256: =+DATA!D35 -> 0 | H256: =+DATA!E35 -> 0 | I256: =+DATA!F35 -> 0 | Q256: Travel, Annual holidays | W256: 0
A257: =+DATA!B36 -> Charity, Donations etc. | F257: =+DATA!C36 -> 0 | G257: =+DATA!D36 -> 0 | H257: =+DATA!E36 -> 0 | I257: =+DATA!F36 -> 0 | Q257: Charity, Donations etc. | W257: 0
A258: =+DATA!B37 -> House renovations, Celebrations etc. | F258: =+DATA!C37 -> 0 | G258: =+DATA!D37 -> 0 | H258: =+DATA!E37 -> 0 | I258: =+DATA!F37 -> 0 | Q258: House renovations, Celebrations etc. | W258: 0
A259: =+DATA!B38 -> 0 | F259: =+DATA!C38 -> 0 | G259: =+DATA!D38 -> 0 | H259: =+DATA!E38 -> 0 | I259: =+DATA!F38 -> 0 | Q259: 0 | W259: 0
A260: =+DATA!B39 -> Children school / college fees | F260: =+DATA!C39 -> 3400 | G260: =+DATA!D39 -> 0 | H260: =+DATA!E39 -> 40800 | I260: =+DATA!F39 -> 0.007555555556 | Q260: Children school / college fees | W260: 3400
A261: =+DATA!B40 -> Children pocket money / other expenses | F261: =+DATA!C40 -> 0 | G261: =+DATA!D40 -> 0 | H261: =+DATA!E40 -> 0 | I261: =+DATA!F40 -> 0 | Q261: Children pocket money / other expenses | W261: 0
A262: =+DATA!B41 -> Contribution to parents, siblings etc. | F262: =+DATA!C41 -> 0 | G262: =+DATA!D41 -> 0 | H262: =+DATA!E41 -> 0 | I262: =+DATA!F41 -> 0 | Q262: Contribution to parents, siblings etc. | W262: 0
A263: =+DATA!B42 -> 0 | F263: =+DATA!C42 -> 0 | G263: =+DATA!D42 -> 0 | H263: =+DATA!E42 -> 0 | I263: =+DATA!F42 -> 0 | Q263: 0 | W263: 0
A264: =+DATA!B43 -> Personal Expenses | F264: =+DATA!C43 -> 0 | G264: =+DATA!D43 -> 0 | H264: =+DATA!E43 -> 0 | I264: =+DATA!F43 -> 0 | Q264: Personal Expenses | W264: 0
A265: =+DATA!B44 -> Total Household Expenses | F265: =+DATA!C44 -> 0 | G265: =+DATA!D44 -> 0 | H265: =+DATA!E44 -> 0 | I265: =+DATA!F44 -> 0 | Q265: Total Household Expenses | W265: 0
A266: =+DATA!B45 -> TOTAL MONTHLY REGULAR EXPS | F266: =+DATA!C45 -> 78400 | G266: =+DATA!D45 -> 0 | H266: =+DATA!E45 -> 940800
A267: =+DATA!B45 -> TOTAL MONTHLY REGULAR EXPS | F267: =+DATA!C45 -> 78400 | G267: =+DATA!D45 -> 0 | H267: =+DATA!E45 -> 940800
A268: =+DATA!B46 -> TOTAL YEARLY EXPNESES | F268: =+DATA!C46 -> 940800 | G268: =+DATA!D46 -> 0 | H268: =+DATA!E46 -> 940800
A269: =+DATA!B47 -> TOTAL REGULAR + IRREGULAR EXPS (A) | F269: =+DATA!C47 -> 78400 | H269: =+DATA!E47 -> 940800
A272: =+ASSUMPTIONS!B1 -> ASSUMPTIONS
A273: =+ASSUMPTIONS!B2 -> RETIREMENT AGE | I273: =+ASSUMPTIONS!C2 -> 60
A274: =+ASSUMPTIONS!B3 -> LIFE EXPECTANCY | I274: =+ASSUMPTIONS!C3 -> 85
A275: =+ASSUMPTIONS!B4 -> POST RETIRMENT NO OF YRS PENSION REQUIRED | I275: =+ASSUMPTIONS!C4 -> 25
A276: =+ASSUMPTIONS!B5 -> PRE - RETIREMENT INFLN | I276: =+ASSUMPTIONS!C5 -> 0.07
A277: =+ASSUMPTIONS!B6 -> POST - RETIREMENT INFLN | I277: =+ASSUMPTIONS!C6 -> 0.05
A278: =+ASSUMPTIONS!B7 -> EDUCATION INFLATION | I278: =+ASSUMPTIONS!C7 -> 0.07
A279: =+ASSUMPTIONS!B8 -> RETURN ON DEBT | I279: =+ASSUMPTIONS!C8 -> 0.06
A280: =+ASSUMPTIONS!B9 -> RETURN ON EQUITY | I280: =+ASSUMPTIONS!C9 -> 0.12
A281: =+ASSUMPTIONS!B10 -> RETURN ON BALANCE FUND | I281: =+ASSUMPTIONS!C10 -> 0.1
A282: =+ASSUMPTIONS!B11 -> RETURN ON GOLD | I282: =+ASSUMPTIONS!C11 -> 0.08
A283: =+ASSUMPTIONS!B12 -> RETURN ON PROPERTY | I283: =+ASSUMPTIONS!C12 -> 0.08
A284: =+ASSUMPTIONS!B13 -> RETURN ON PPF / PF | I284: =+ASSUMPTIONS!C13 -> 0.07
A285: =+ASSUMPTIONS!B14 -> POST- RETIREMENT RETURN | I285: =+ASSUMPTIONS!C14 -> 0.05
A286: =+ASSUMPTIONS!B15 -> NO OF YRS LEFT FOR RETIREMENT | I286: =+ASSUMPTIONS!C15 -> -65
A290: CASH FLOWS
A291: TOTAL YEARLY INFLOWS | F291: =+'SURPLUS & NETWORTH'!C2 -> 5400000 | G291: TOTAL MONTHLY INFLOWS | I291: =F291/12 -> 450000
A292: =+'SURPLUS & NETWORTH'!B3 -> FAMILY STANDARD OF LIVING EXPENSES | F292: =+'SURPLUS & NETWORTH'!C3 -> 940800 | G292: =+'SURPLUS & NETWORTH'!D3 -> FAMILY STANDARD OF LIVING EXPENSES | I292: =F292/12 -> 78400
A293: =+'SURPLUS & NETWORTH'!B4 -> PURE INSURANCE PREMIUMS | F293: =+'SURPLUS & NETWORTH'!C4 -> 0 | G293: =+'SURPLUS & NETWORTH'!D4 -> PURE INSURANCE PREMIUMS | I293: =F293/12 -> 0
A294: =+'SURPLUS & NETWORTH'!B5 -> REGULAR SAVINGS & INVESTMENTS | F294: =+'SURPLUS & NETWORTH'!C5 -> 0 | G294: =+'SURPLUS & NETWORTH'!D5 -> REGULAR SAVINGS & INVESTMENTS | I294: =F294/12 -> 0
A295: =+'SURPLUS & NETWORTH'!B6 -> LOAN EMI DETAILS | F295: =+'SURPLUS & NETWORTH'!C6 -> 1013316 | G295: =+'SURPLUS & NETWORTH'!D6 -> LOAN DETAILS | I295: =F295/12 -> 84443
A296: =+'SURPLUS & NETWORTH'!B7 -> TOTAL YEARLY OUTFLOWS | F296: =SUM(F292:F295) -> 1954116 | G296: =+'SURPLUS & NETWORTH'!D7 -> TOTAL MONTHLY OUTFLOWS | I296: =SUM(I292:I295) -> 162843
A297: =+'SURPLUS & NETWORTH'!B8 -> YEARLY SURPLUS AMOUNT | F297: =+F291-F296 -> 3445884 | G297: =+'SURPLUS & NETWORTH'!D8 -> MONTHLY SURPLUS AMOUNT | I297: =+I291-I296 -> 287157
A317: NETWORTH STATEMENT
A318: ASSETS | F318: AMT | G318: LIABLITIES | I318: AMT
A319: =+'SURPLUS & NETWORTH'!B12 -> FINANCIAL ASSETS | F319: =+'SURPLUS & NETWORTH'!C12 -> 0 | G319: =+'SURPLUS & NETWORTH'!D12 -> LOAN LIABILITIES | I319: =+'SURPLUS & NETWORTH'!E12 -> 8205617
A320: =+'SURPLUS & NETWORTH'!B13 -> NON FINANCIAL ASSETS | F320: =+'SURPLUS & NETWORTH'!C13 -> 0 | G320: =+'SURPLUS & NETWORTH'!D13 -> SOP HOUSE | I320: =+'SURPLUS & NETWORTH'!E13 -> 0
A321: =+'SURPLUS & NETWORTH'!B14 -> CASH VALUE OF INSURANCE OF INSURANCE POLICIES | F321: =+'SURPLUS & NETWORTH'!C14 -> 0 | G321: =+'SURPLUS & NETWORTH'!D14 -> 0 | I321: =+'SURPLUS & NETWORTH'!E14 -> 0
A322: =+'SURPLUS & NETWORTH'!B15 -> JEWELLERY- ORNAMENTS | F322: =+'SURPLUS & NETWORTH'!C15 -> 0 | G322: =+'SURPLUS & NETWORTH'!D15 -> CAR | I322: =+'SURPLUS & NETWORTH'!E15 -> 0
A323: =+'SURPLUS & NETWORTH'!B16 -> TOTAL ASSETS | F323: =SUM(F319:F322) -> 0 | G323: =+'SURPLUS & NETWORTH'!D16 -> TOTAL LIABILITIES | I323: =+'SURPLUS & NETWORTH'!E16 -> 8205617
A324: NETWORTH VALUE | I324: =F323-I323 -> -8205617
A327: Networth
A328: TOTAL ASSETS | I328: =+'SURPLUS & NETWORTH'!H15 -> 0
A329: TOTAL LIABILITIES | I329: =+'SURPLUS & NETWORTH'!H16 -> 8205617
A330: NETWORTH | I330: =I328-I329 -> -8205617
C364: Contingency Planning
A368: EMERGENCY PLANNING FOR JOB LOSS / BUSINESS LOSS /CASH CRUNCH
A370: TOTAL AVERAGE MONTHLY OUTFLOW | G370: =+'EMERGENCY FUND'!B2 -> 162843
A371: NO OF MONTHS TO BE PLANNED | G371: =+'EMERGENCY FUND'!B3 -> 9
A372: TOTAL EMERGENCY FUND REQUIRED | G372: =+'EMERGENCY FUND'!B4 -> 1465587
A373: EXISTING PROVISION | G373: =+'EMERGENCY FUND'!B5 -> 400000
A374: GAP AMOUNT TO BE FILLED | G374: =+'EMERGENCY FUND'!B6 -> 1065587
A377: EXISITING SOURCES | G377: AMT
A378: SAVING BALANCE | G378: ='EMERGENCY FUND'!E3 -> 0
A379: FIXED DEPOSITS | G379: ='EMERGENCY FUND'!E4 -> 400000
A380: TOTAL EXISTING AMT | G380: ='EMERGENCY FUND'!E5 -> 400000
A381: WHERE TO INVEST | G381: AMT
A382: IN SAVING A/C 1 MONTH PROVISION | G382: =+'EMERGENCY FUND'!E7 -> 162843
A383: IN BANK FD/ LIQUID FUND | G383: =+'EMERGENCY FUND'!E8 -> 1302744
A384: TOTAL INVESTMENT | G384: =SUM(G382:G383) -> 1465587
A411: PLANNING FOR UNCERTAIN EVENTS / RISK PLANNING
A414: EVENTS TO BE PLANNED | F414: REQUIRED COVER | G414: EXISTING COVER | H414: EXISTING SOURCES | I414: GAP AMT TO BE FILLED
A416: A | B416: MAJOR HEALTH PROBLEMS
A417: 1 | B417: BASIC HEALTH PLAN | F417: =+'RISK PLANNING'!D8 -> 1000000 | G417: =+'RISK PLANNING'!F8 -> 0 | H417: =+'RISK PLANNING'!G8 -> 0 | I417: =+'RISK PLANNING'!H8 -> 1000000
A418: 2 | B418: TOP UP PLAN | F418: =+'RISK PLANNING'!D9 -> 2000000 | G418: =+'RISK PLANNING'!F9 -> 0 | H418: =+'RISK PLANNING'!G9 -> 0 | I418: =+'RISK PLANNING'!H9 -> 2000000
A419: 3 | B419: CRITICAL ILLNESS | F419: =+'RISK PLANNING'!D10 -> 1000000 | G419: =+'RISK PLANNING'!F10 -> 0 | H419: =+'RISK PLANNING'!G10 -> 0 | I419: =+'RISK PLANNING'!H10 -> 1000000
A420: 4 | B420: HOSPITAL CASH BENEFIT PLAN | F420: =+'RISK PLANNING'!D11 -> 3000 | G420: =+'RISK PLANNING'!F11 -> 0 | H420: =+'RISK PLANNING'!G11 -> 0 | I420: =+'RISK PLANNING'!H11 -> 3000
A421: 5 | B421: PARENTS HEALTH INSURANCE | F421: =+'RISK PLANNING'!D12 -> 500000 | G421: =+'RISK PLANNING'!F12 -> 0 | H421: =+'RISK PLANNING'!G12 -> 0 | I421: =+'RISK PLANNING'!H12 -> 500000
A422: TOTAL | F422: =+'RISK PLANNING'!D13 -> 4503000 | G422: =+'RISK PLANNING'!F13 -> 0 | H422: =+'RISK PLANNING'!G13 ->  | I422: =+'RISK PLANNING'!H13 -> 4503000
A425: B | B425: ACCIDENTAL DISABILITY/ DEATH
A426: 1 | B426: TO MAINTAIN SAME STNDRD OF LIVING | F426: =+'RISK PLANNING'!D15 -> 15680000 | G426: =+'RISK PLANNING'!F15 -> 0 | H426: =+'RISK PLANNING'!G15 -> FINANCIAL ASSETS
A427: 2 | B427: REPAY ALL THE LOAN LIABILITIES | F427: =+'RISK PLANNING'!D16 -> 8205617 | G427: =+'RISK PLANNING'!F16 -> 0 | H427: =+'RISK PLANNING'!G16 -> NON FINANCIAL ASSETS EXCEPT SOP HOUSE, CAR, JEWELLERY
A428: 3 | B428: TO COVER CHILDREN EDUCATION & MARRIAGE | F428: =+'RISK PLANNING'!D17 -> 0 | G428: =+'RISK PLANNING'!F17 -> 0 | H428: =+'RISK PLANNING'!G17 -> ACCIDENTAL POLICY IF ANY
A429: 4 | B429: TO FULFILL GOALS | F429: =+'RISK PLANNING'!D18 -> 0 | G429: =+'RISK PLANNING'!F20 -> 0 | H429: =+'RISK PLANNING'!G18 -> ANY OTHER ASSETS
B430: TOTAL | F430: =+'RISK PLANNING'!D19 -> 23885617 | G430: =+'RISK PLANNING'!F19 -> 0 | I430: =+'RISK PLANNING'!H19 -> 23885617
A432: C | B432: LIFE COVER (NEED BASED METHOD)
A433: 1 | B433: =+'RISK PLANNING'!C22 -> TO MAINTAIN SAME STANDARD OF LIVING | F433: =+'RISK PLANNING'!D22 -> 15680000 | G433: =+'RISK PLANNING'!F22 -> 0 | H433: FINANCIAL ASSETS
A434: 2 | B434: =+'RISK PLANNING'!C23 -> REPAY ALL THE LOAN LIABILITIES | F434: =+'RISK PLANNING'!D23 -> 8205617 | G434: =+'RISK PLANNING'!F23 -> 0 | H434: NON FINANCIAL ASSETS EXCEPT SOP HOUSE, CAR, JEWELLERY
A435: 3 | B435: =+'RISK PLANNING'!C24 -> TO COVER CHILDREN EDUCATION & MARRIAGE | F435: =+'RISK PLANNING'!D24 -> 0 | G435: =+'RISK PLANNING'!F24 -> 0 | H435: Term Plan
A436: 4 | B436: =+'RISK PLANNING'!C25 -> TO FULFILL GOALS | F436: =+'RISK PLANNING'!D25 -> 0 | G436: =+'RISK PLANNING'!F25 -> 0 | H436: Endowment & ULIP Plan Death Benefit amount
B437: =+'RISK PLANNING'!C26 -> TOTAL | F437: =SUM(F433:F436) -> 23885617 | G437: =SUM(G433:G436) -> 0 | I437: =+'RISK PLANNING'!H26 -> 23885617
A439: D | B439: =+'RISK PLANNING'!C28 -> HOUSE BREAKING & BURGLARY INSURANCE | F439: =+'RISK PLANNING'!D28 -> 0 | G439: =+'RISK PLANNING'!F28 -> 0 | H439: 0
A441: E | B441: =+'RISK PLANNING'!C30 -> VEHICLE INSURANCE | F441: =+'RISK PLANNING'!D30 -> 0 | G441: =+'RISK PLANNING'!F30 -> 0 | H441: 0
A442: Planners Note
A443: =+'RISK PLANNING'!D32 -> 1). Considering medical inflation in India, Existing health cover of Rs 5 Lakh is not sufficient. Hence it is recommended to go for Rs 10 Lakh base cover as well as Rs 20 lakh Top Up cover. 2). You do not have sufficient financial assets to cover expenses in case of liability. Hence it is recommended to have PA policy with 1.5 Cr cover
A448: RETIREMENT PLANNING
A449: PRE- RETIREMENT STAGE | G449: POST - RETIREMENT STAGE
A451: PRE - RETIREMENT MONTHLY EXPS | F451: =+'RETIREMENT PLANNING'!B3 -> 78400 | G451: =+'RETIREMENT PLANNING'!D3 -> YEARLY GAP INCOME REQUIRED | I451: =+'RETIREMENT PLANNING'!E3 -> 516.8376435
A453: POST RETIREMENT MLY EXPENSES | F453: =+'RETIREMENT PLANNING'!B5 -> 62720 | G453: =+'RETIREMENT PLANNING'!D5 -> NO OF YEARS PENSION REQUIRED | I453: =+'RETIREMENT PLANNING'!E5 -> 0
A455: PRE - RETIREMENT INFLATION RATE | F455: =+'RETIREMENT PLANNING'!B7 -> 0.06 | G455: =+'RETIREMENT PLANNING'!D7 -> POST RETIREMENT RETURN ON INVESTMENTS | I455: =+'RETIREMENT PLANNING'!E7 -> 0
I456: =+'RETIREMENT PLANNING'!E8 -> 0
A457: CURRENT AGE | F457: =+'RETIREMENT PLANNING'!B9 -> 125 | G457: =+'RETIREMENT PLANNING'!D9 -> CORPUS REQUIRED ON RETIREMENT YEAR | I457: =+'RETIREMENT PLANNING'!E9 -> 0
I458: =+'RETIREMENT PLANNING'!E10 -> 0
A459: RETIREMENT AGE | F459: =+'RETIREMENT PLANNING'!B11 -> 0 | G459: =+'RETIREMENT PLANNING'!D11 -> FUTURE VALUE OF EXISTING INVESTMENTS | I459: =+'RETIREMENT PLANNING'!E11 -> 0
I460: =+'RETIREMENT PLANNING'!E12 -> 0
A461: NO OF YEARS LEFT FOR RETIREMNT | F461: =+'RETIREMENT PLANNING'!B13 -> -125 | G461: =+'RETIREMENT PLANNING'!D13 -> GAP CORPUS TO BE ACCUMULATED BY RETIREMENT | I461: =+'RETIREMENT PLANNING'!E13 -> 0
A463: MLY EXPENSES ON RETIREMENT YEAR | F463: =+'RETIREMENT PLANNING'!B15 -> 43.06980362 | G463: =+'RETIREMENT PLANNING'!D15 -> PRE - RETIREMENT RETURN ON INVESTMENTS | I463: =+'RETIREMENT PLANNING'!E15 -> 0.12
A464: EXISTING PENSION / POST RETIRMENT INCOME RECEIVABLE | F464: =+'RETIREMENT PLANNING'!B16 -> 0 | I464: =+'RETIREMENT PLANNING'!E16 -> 0
A465: GAP MONTHLY PENSION/ INCOME REQUIRED | F465: =+'RETIREMENT PLANNING'!B17 -> 43.06980362 | G465: =+'RETIREMENT PLANNING'!D17 -> NEW MLY INVESTMENTS TO FILL GAP OF RETIREMENT | I465: =+'RETIREMENT PLANNING'!E17 -> 0
A468: EXISTING MONTHLY INCOME/ PENSION POST RETIREMENT
A470: SOURCE | F470: PRESENT MLY Rental INCOME | G470: PRESENT YEARLY INCOME | H470: GROWTH RATE,IF ANY | I470: YEARLY FUTURE VALUE
A471: =+'RETIREMENT PLANNING'!G3 -> RENTAL INCOME | F471: =+'RETIREMENT PLANNING'!H3 -> 0 | G471: =F471*12 -> 0 | H471: =+'RETIREMENT PLANNING'!J3 -> 0.05 | I471: =+'RETIREMENT PLANNING'!K3 -> 0
A472: =+'RETIREMENT PLANNING'!G4 -> PENSION INCOME | F472: =+'RETIREMENT PLANNING'!H4 -> 0 | G472: 0 | H472: =+'RETIREMENT PLANNING'!J4 -> 0.05 | I472: =+'RETIREMENT PLANNING'!K4 -> 0
A473: =+'RETIREMENT PLANNING'!G5 -> DIVIDEND INCOME | F473: =+'RETIREMENT PLANNING'!H5 -> 0 | G473: 0 | H473: =+'RETIREMENT PLANNING'!J5 -> 0.05 | I473: =+'RETIREMENT PLANNING'!K5 -> 0
A474: =+'RETIREMENT PLANNING'!G6 -> ROYALTY INCOME | F474: =+'RETIREMENT PLANNING'!H6 -> 0 | G474: 0 | H474: =+'RETIREMENT PLANNING'!J6 -> 0.05 | I474: =+'RETIREMENT PLANNING'!K6 -> 0
A475: =+'RETIREMENT PLANNING'!G7 -> 0 | F475: =+'RETIREMENT PLANNING'!H7 -> 0 | G475: 0 | H475: =+'RETIREMENT PLANNING'!J7 -> 0.05 | I475: =+'RETIREMENT PLANNING'!K7 -> 0
A476: =+'RETIREMENT PLANNING'!G8 -> 0 | F476: =+'RETIREMENT PLANNING'!H8 -> 0 | G476: 0 | H476: =+'RETIREMENT PLANNING'!J8 -> 0.05 | I476: =+'RETIREMENT PLANNING'!K8 -> 0
A477: =+'RETIREMENT PLANNING'!G9 -> 0 | F477: =+'RETIREMENT PLANNING'!H9 -> 0 | G477: 0 | H477: =+'RETIREMENT PLANNING'!J9 -> 0.05 | I477: =+'RETIREMENT PLANNING'!K9 -> 0
A478: =+'RETIREMENT PLANNING'!G10 -> 0 | F478: =+'RETIREMENT PLANNING'!H10 -> 0 | G478: 0 | H478: =+'RETIREMENT PLANNING'!J10 -> 0.05 | I478: =+'RETIREMENT PLANNING'!K10 -> 0
A479: =+'RETIREMENT PLANNING'!G11 -> 0 | F479: =+'RETIREMENT PLANNING'!H11 -> 0 | G479: 0 | H479: =+'RETIREMENT PLANNING'!J11 -> 0.05 | I479: =+'RETIREMENT PLANNING'!K11 -> 0
A480: =+'RETIREMENT PLANNING'!G12 -> 0 | F480: =+'RETIREMENT PLANNING'!H12 -> 0 | G480: 0 | H480: =+'RETIREMENT PLANNING'!J12 -> 0.05 | I480: =+'RETIREMENT PLANNING'!K12 -> 0
A481: =+'RETIREMENT PLANNING'!G13 -> 0 | F481: =+'RETIREMENT PLANNING'!H13 -> 0 | G481: 0 | H481: =+'RETIREMENT PLANNING'!J13 -> 0.05 | I481: =+'RETIREMENT PLANNING'!K13 -> 0
A482: =+'RETIREMENT PLANNING'!G14 -> 0 | F482: =+'RETIREMENT PLANNING'!H14 -> 0 | G482: 0 | H482: =+'RETIREMENT PLANNING'!J14 -> 0.05 | I482: =+'RETIREMENT PLANNING'!K14 -> 0
A483: =+'RETIREMENT PLANNING'!G15 -> 0 | F483: =+'RETIREMENT PLANNING'!H15 -> 0 | G483: 0 | H483: =+'RETIREMENT PLANNING'!J15 -> 0.05 | I483: =+'RETIREMENT PLANNING'!K15 -> 0
A484: =+'RETIREMENT PLANNING'!G16 -> 0 | F484: =+'RETIREMENT PLANNING'!H16 -> 0 | G484: 0 | H484: =+'RETIREMENT PLANNING'!J16 -> 0.05 | I484: =+'RETIREMENT PLANNING'!K16 -> 0
A485: =+'RETIREMENT PLANNING'!G17 -> TOTAL | F485: =G485/12 -> 0 | G485: =SUM(G471:G484) -> 0 | H485: TOTAL | I485: =SUM(I471:I484) -> 0
G486: MLY AVERAGE | I486: =I485/12 -> 0
A490: RETIREMENT YEAR | F490: =+'RETIREMENT PLANNING'!B24 -> 1899
A491: FUTURE VALUE OF EXISTING ASSETS/INVESTMENTS ALLOCATED TO RETIREMENT NEEDS
A492: NAME OF SCHEME/INVESTMENT | D492: CURRENT VALUE/ REINVESTED VALUE | E492: ROR | F492: FUTURE REGURLAR INVESTMENTS AMT | G492: Investment Period | H492: Mode Yearly or current value = 1, HALF yearly = 2, Quarterly = 4, Monthly = 12 | I492: Recommendation | J492: FUTURE VALUE ON RETIREMENT
... 94 more rows

Sheet OnePager (hidden)
B1: FINANCIAL PLAN BLUE PRINT
B44: CASH FLOWS AND NETWORTH STATEMENT
A147: CHILD EDUCATION AND MARRIAGE GOALS
A187: HAPPY RETIREMENT
A219: ASPIRATIONAL GOALS PLANNING
A245: Thank you

Sheet Goal List (hidden)
A1: EXISTING INVESTMENTS
A3: SR.NO | B3: PARTICLULARS | C3: SCHEME / AC NAME | D3: CURRENT VALUE | E3: SIP/R.D. | F3: LUMPSUM | G3: SIP / R.D. | H3: LUMPSUM | J3: S.I.P./R.D. | L3: MAPED AGAINST WHICH GOAL
F4: MAPPED | G4: MAPPED | H4: BALANCE | J4: BALANCE
A5: =+INPUT!A108 -> 1 | B5: =+INPUT!B108 -> Bank 1 - Savings balance | C5: =+INPUT!G108 -> 0 | D5: =+INPUT!H108 -> 0 | E5: =+INPUT!J108 -> 0 | H5: =+D5-F5 -> 0 | J5: =+E5-G5 -> 0 | M5: =CONCATENATE(B5," Lumsum :- ",D5," "," SIP/RD :- ",E5) -> Bank 1 - Savings balance Lumsum :- 0 SIP/RD :- 0
A6: =+INPUT!A109 -> 2 | B6: =+INPUT!B109 -> Bank 2 - Savings balance | C6: =+INPUT!G109 -> 0 | D6: =+INPUT!H109 -> 0 | E6: =+INPUT!J109 -> 0 | H6: =+D6-F6 -> 0 | J6: =+E6-G6 -> 0 | M6: =CONCATENATE(B6," Lumsum :- ",D6," "," SIP/RD :- ",E6) -> Bank 2 - Savings balance Lumsum :- 0 SIP/RD :- 0
A7: =+INPUT!A110 -> 3 | B7: =+INPUT!B110 -> Bank 3 - Savings balance | C7: =+INPUT!G110 -> 0 | D7: =+INPUT!H110 -> 0 | E7: =+INPUT!J110 -> 0 | H7: =+D7-F7 -> 0 | J7: =+E7-G7 -> 0 | M7: Bank 3 - Savings balance Lumsum :- 0 SIP/RD :- 0
A8: =+INPUT!A111 -> 4 | B8: =+INPUT!B111 -> Fixed Deposit - SBI | C8: =+INPUT!G111 -> 0 | D8: =+INPUT!H111 -> 0 | E8: =+INPUT!J111 -> 0 | F8: 400000 | H8: -400000 | J8: 0 | M8: Fixed Deposit - SBI Lumsum :- 0 SIP/RD :- 0
A9: =+INPUT!A112 -> 5 | B9: =+INPUT!B112 -> Fixed Deposit - Bank ….. | C9: =+INPUT!G112 -> 0 | D9: =+INPUT!H112 -> 0 | E9: =+INPUT!J112 -> 0 | H9: 0 | J9: 0 | M9: Fixed Deposit - Bank ….. Lumsum :- 0 SIP/RD :- 0
A10: =+INPUT!A113 -> 6 | B10: =+INPUT!B113 -> Employee Provident fund (EPF) | C10: =+INPUT!G113 -> 0 | D10: =+INPUT!H113 -> 0 | E10: =+INPUT!J113 -> 0 | F10: 1000000 | G10: 4500 | H10: -1000000 | J10: -4500 | L10: Retirement - Financial Independence | M10: Employee Provident fund (EPF) Lumsum :- 0 SIP/RD :- 0
A11: =+INPUT!A114 -> 7 | B11: =+INPUT!B114 -> Public Provident Fund (PPF) | C11: =+INPUT!G114 -> 0 | D11: =+INPUT!H114 -> 0 | E11: =+INPUT!J114 -> 0 | H11: 0 | J11: 0 | M11: Public Provident Fund (PPF) Lumsum :- 0 SIP/RD :- 0
A12: =+INPUT!A115 -> 8 | B12: =+INPUT!B115 -> Recurring Deposits (RD) | C12: =+INPUT!G115 -> 0 | D12: =+INPUT!H115 -> 0 | E12: =+INPUT!J115 -> 0 | H12: 0 | J12: 0 | M12: Recurring Deposits (RD) Lumsum :- 0 SIP/RD :- 0
A13: =+INPUT!A116 -> 9 | B13: =+INPUT!B116 -> Mutual Funds ( Attach separate sheet if no. of schemes are more) | C13: =+INPUT!G116 -> 0 | D13: =+INPUT!H116 -> 0 | E13: =+INPUT!J116 -> 0 | F13: 600000 | H13: -600000 | J13: 0 | L13: Sameer Higher Education | M13: Mutual Funds ( Attach separate sheet if no. of schemes are more) Lumsum :- 0 SIP/RD :- 0
A14: =+INPUT!A117 -> 10 | B14: =+INPUT!B117 -> Post - MIS | C14: =+INPUT!G117 -> 0 | D14: =+INPUT!H117 -> 0 | E14: =+INPUT!J117 -> 0 | H14: 0 | J14: 0 | M14: Post - MIS Lumsum :- 0 SIP/RD :- 0
A15: =+INPUT!A118 -> 11 | B15: =+INPUT!B118 -> NSC / KVP | C15: =+INPUT!G118 -> 0 | D15: =+INPUT!H118 -> 0 | E15: =+INPUT!J118 -> 0 | H15: 0 | J15: 0 | M15: NSC / KVP Lumsum :- 0 SIP/RD :- 0
A16: =+INPUT!A119 -> 12 | B16: =+INPUT!B119 -> Corporate FD | C16: =+INPUT!G119 -> 0 | D16: =+INPUT!H119 -> 0 | E16: =+INPUT!J119 -> 0 | H16: 0 | J16: 0 | M16: Corporate FD Lumsum :- 0 SIP/RD :- 0
A17: =+INPUT!A120 -> 13 | B17: =+INPUT!B120 -> Sukanya Samrridhi Yojana | C17: =+INPUT!G120 -> 0 | D17: =+INPUT!H120 -> 0 | E17: =+INPUT!J120 -> 0 | H17: 0 | J17: 0 | M17: Sukanya Samrridhi Yojana Lumsum :- 0 SIP/RD :- 0
A18: =+INPUT!A121 -> 14 | B18: =+INPUT!B121 -> Shares ( Attach separate sheet if no. of shares are more) | C18: =+INPUT!G121 -> 0 | D18: =+INPUT!H121 -> 0 | E18: =+INPUT!J121 -> 0 | H18: 0 | J18: 0 | M18: Shares ( Attach separate sheet if no. of shares are more) Lumsum :- 0 SIP/RD :- 0
A19: =+INPUT!A122 -> 15 | B19: =+INPUT!B122 -> career transition fund | C19: =+INPUT!G122 -> 0 | D19: =+INPUT!H122 -> 0 | E19: =+INPUT!J122 -> 0 | H19: 0 | J19: 0 | M19: career transition fund Lumsum :- 0 SIP/RD :- 0
A20: =+INPUT!A123 -> 16 | B20: =+INPUT!B123 -> 0 | C20: =+INPUT!G123 -> 0 | D20: =+INPUT!H123 -> 0 | E20: =+INPUT!J123 -> 0 | H20: 0 | J20: 0 | M20: 0 Lumsum :- 0 SIP/RD :- 0
A21: =+INPUT!A124 -> 17 | B21: =+INPUT!B124 ->  | C21: =+INPUT!G124 -> 0 | D21: =+INPUT!H124 -> 0 | E21: =+INPUT!J124 -> 0 | H21: 0 | J21: 0 | M21: Lumsum :- 0 SIP/RD :- 0
A22: =+INPUT!A125 -> 18 | B22: =+INPUT!B125 -> 0 | C22: =+INPUT!G125 -> 0 | D22: =+INPUT!H125 -> 0 | E22: =+INPUT!J125 -> 0 | H22: 0 | J22: 0 | M22: 0 Lumsum :- 0 SIP/RD :- 0
A23: =+INPUT!A126 -> 19 | B23: =+INPUT!B126 -> 0 | C23: =+INPUT!G126 -> 0 | D23: =+INPUT!H126 -> 0 | E23: =+INPUT!J126 -> 0 | H23: 0 | J23: 0 | M23: 0 Lumsum :- 0 SIP/RD :- 0
A24: =+INPUT!A127 -> 20 | B24: =+INPUT!B127 -> 0 | C24: =+INPUT!G127 -> 0 | D24: =+INPUT!H127 -> 0 | E24: =+INPUT!J127 -> 0 | H24: 0 | J24: 0 | M24: 0 Lumsum :- 0 SIP/RD :- 0
A25: =+INPUT!A128 -> 21 | B25: =+INPUT!B128 -> 0 | C25: =+INPUT!G128 -> 0 | D25: =+INPUT!H128 -> 0 | E25: =+INPUT!J128 -> 0 | H25: 0 | J25: 0 | M25: 0 Lumsum :- 0 SIP/RD :- 0
A26: =+INPUT!A129 -> 22 | B26: =+INPUT!B129 -> 0 | C26: =+INPUT!G129 -> 0 | D26: =+INPUT!H129 -> 0 | E26: =+INPUT!J129 -> 0 | H26: 0 | J26: 0 | M26: 0 Lumsum :- 0 SIP/RD :- 0
A27: =+INPUT!A130 -> 23 | B27: =+INPUT!B130 -> 0 | C27: =+INPUT!G130 -> 0 | D27: =+INPUT!H130 -> 0 | E27: =+INPUT!J130 -> 0 | H27: 0 | J27: 0 | M27: 0 Lumsum :- 0 SIP/RD :- 0
A28: =+INPUT!A131 -> 24 | B28: =+INPUT!B131 -> 0 | C28: =+INPUT!G131 -> 0 | D28: =+INPUT!H131 -> 0 | E28: =+INPUT!J131 -> 0 | H28: 0 | J28: 0 | M28: 0 Lumsum :- 0 SIP/RD :- 0
A29: =+INPUT!A132 -> 25 | B29: =+INPUT!B132 -> Any Other Regular / Irregular Investments | C29: =+INPUT!G132 -> 0 | D29: =+INPUT!H132 -> 0 | E29: =+INPUT!J132 -> 0 | H29: 0 | J29: 0 | M29: Any Other Regular / Irregular Investments Lumsum :- 0 SIP/RD :- 0
D30: =SUM(D5:D29) -> 0 | E30: =SUM(E5:E29) -> 0 | F30: =SUM(F5:F29) -> 2000000 | G30: =SUM(G5:G29) -> 4500 | H30: =SUM(H5:I29) -> -2000000 | J30: =SUM(J5:K29) -> -4500
A34: GOAL LIST
A36: SR.NO | B36: NAME OF GOAL | C36: YEAR OF GOAL | D36: CORPUS | E36: YEARS LEFT | F36: Existing
D37: REQUIRED | F37: Fund Maped | G37: SIP/RD Map
A38: 1 | B38: Retirement - Financial Independence | C38: =+'RETIREMENT PLANNING'!B24 -> 1899 | D38: =+'RETIREMENT PLANNING'!E9 -> 0 | E38: =IF(+C38-YEAR(TODAY())>0,+C38-YEAR(TODAY()),0) -> 0
A39: 2 | B39: =+INPUT!B93 -> Mayuri Graduation | C39: =+INPUT!H93 -> 0 | D39: =+'EDUCATION & MARRIAGE'!I3 -> 0 | E39: =IF(+C39-YEAR(TODAY())>0,+C39-YEAR(TODAY()),0) -> 0
A40: 3 | B40: =+INPUT!B94 -> Mayuri Post Graduation | C40: =+INPUT!H94 -> 0 | D40: =+'EDUCATION & MARRIAGE'!I4 -> 0 | E40: 0
A41: 4 | B41: =+INPUT!B95 -> Heramb Graduation | C41: =+INPUT!H95 -> 0 | D41: =+'EDUCATION & MARRIAGE'!I5 -> 0 | E41: 0
A42: 5 | B42: =+INPUT!B96 -> Heramb Post Graduation | C42: =+INPUT!H96 -> 0 | D42: =+'EDUCATION & MARRIAGE'!I6 -> 0 | E42: 0
A43: 6 | B43: =+INPUT!B97 -> 0 | C43: =+INPUT!H97 -> 0 | D43: =+'EDUCATION & MARRIAGE'!I7 -> 0 | E43: 0
A44: 7 | B44: =+INPUT!B98 -> 0 | C44: =+INPUT!H98 -> 0 | D44: =+'EDUCATION & MARRIAGE'!I8 -> 0 | E44: 0
A45: 8 | B45: =+INPUT!B99 -> 0 | C45: =+INPUT!H99 -> 0 | D45: =+'EDUCATION & MARRIAGE'!I9 -> 0 | E45: 0
A46: 9 | B46: =+INPUT!B100 -> 0 | C46: =+INPUT!H100 -> 0 | D46: =+'EDUCATION & MARRIAGE'!I10 -> 0 | E46: 0
A47: 10 | B47: =+INPUT!B101 -> 0 | C47: =+INPUT!H101 -> 0 | D47: =+'EDUCATION & MARRIAGE'!I11 -> 0 | E47: 0
A48: 11 | B48: =+INPUT!B102 -> 0 | C48: =+INPUT!H102 -> 0 | D48: =+'EDUCATION & MARRIAGE'!I12 -> 0 | E48: 0
A49: 12 | B49: =+INPUT!B103 -> 0 | C49: =+INPUT!H103 -> 0 | D49: =+'EDUCATION & MARRIAGE'!I13 -> 0 | E49: 0
A50: 13 | B50: =+INPUT!B104 -> 0 | C50: =+INPUT!H104 -> 0 | D50: =+'EDUCATION & MARRIAGE'!I14 -> 0 | E50: 0
A51: 14 | B51: =+INPUT!B76 -> Kirtana's wellness Resort | C51: =+INPUT!G76 -> 2034 | D51: =+GOALS!G4 -> 0 | E51: 9
A52: 15 | B52: =+INPUT!B77 -> Kirtana Yoga Office | C52: =+INPUT!G77 -> 2029 | D52: =+GOALS!G5 -> 0 | E52: 4
A53: 16 | B53: =+INPUT!B78 -> International Tour | C53: =+INPUT!G78 -> 2029 | D53: =+GOALS!G6 -> 0 | E53: 4
A54: 17 | B54: =+INPUT!B79 -> 0 | C54: =+INPUT!G79 -> 0 | D54: =+GOALS!G7 -> 0 | E54: 0
A55: 18 | B55: =+INPUT!B80 -> 0 | C55: =+INPUT!G80 -> 0 | D55: =+GOALS!G8 -> 0 | E55: 0
A56: 19 | B56: =+INPUT!B81 -> 0 | C56: =+INPUT!G81 -> 0 | D56: =+GOALS!G9 -> 0 | E56: 0
A57: 20 | B57: =+INPUT!B82 -> 0 | C57: =+INPUT!G82 -> 0 | D57: =+GOALS!G10 -> 0 | E57: 0
D58: =SUM(D38:D57) -> 0

Sheet Financial Goals (hidden)
G2: =TODAY() -> 2025-03-31
A4: My Financial Goals
A5: Goal | B5: Retirement | D5: Children Education & Marriage | F5: Aspirational Goals | H5: Any Other Goals
A6: Target Year | B6: ='RETIREMENT PLANNING'!B24 -> 1899 | D6: ='GOALS FOR CHILDREN'!A15 -> 0 | H6: =DATA!C86 -> 0
A7: Projected Target Amount | B7: ='RETIREMENT PLANNING'!E9 -> 0 | D7: ='EDUCATION & MARRIAGE'!I15 -> 0 | F7: =GOALS!G11 -> 0 | H7: =GOALS!G8 -> 0
A8: Existing Amount Provision | B8: ='RETIREMENT PLANNING'!E11 -> 0 | D8: ='EDUCATION & MARRIAGE'!Q15 -> 600000 | F8: =GOALS!J11 -> 0 | H8: =GOALS!J8 -> 0
A9: Require Gap Amount | B9: ='RETIREMENT PLANNING'!E13 -> 0 | D9: ='EDUCATION & MARRIAGE'!R15 -> -600000 | F9: =GOALS!L11 -> 0 | H9: =GOALS!L8 -> 0
A10: Ahed of (-Behind) Schedule | B10: =B8-B9 -> 0 | D10: =D8-D9 -> 1200000 | F10: =F8-F9 -> 0
A11: My Progress
A14: Final Target
A15: Require Gap Amount
A16: Existing Amount Provision
A17: Ahed of Schedule
A18: Behind Sche
A21: My Financial Goals
A22: Goal | B22: Vacation | D22: Home | F22: Debt/Mortgage | I22: New Goal
A23: Projecte Completion Date | B23: 2033-01-17 | D23: 2024-12-30 | F23: 2021-09-28
A24: Final Target | B24: 1000000 | D24: 20000000
A25: Existing Amount Provision | B25: 300000 | D25: 5000000 | F25: -500000
A26: Require Gap Amount | B26: 475000 | D26: 15000000 | F26: -700000
A27: Ahed of (-Behind)Shedule
A28: My Financial Goals
A31: Final Target
A32: Require Gap Amount
A33: Existing Amount Provision
A34: Ahed of Shedule
A35: Behind Shedule

Sheet Ration Configration Page (hidden)
A2: Title | B2: EXPENCES RATIO
A4: Ratio: | B4: ='FINANCIAL RATIOS ANALYSIS'!E4:E5 -> 0.1742222222
A6: Min:Max | B6: Data Series
A7: 0.3 | B7: =IF(B4<=A7,B4," ") -> 0.1742222222
A8: 0.5 | B8: =IF(AND(B4>A7,B4<=A8),B4," ") -> 
A9: 0.75 | B9: =IF(B4>A8,B4," ") -> 
A10: Difference | B10: =MAX(1,B4)-B4 -> 0.8257777778
A12: Title | B12: BASIC LIQUIDITY RATIO | E12: Title | F12: EXPANDED LIQUIDITY | I12: Title | J12: SAVINGS RATIO | M12: Title | N12: DEBT ASSET RATIO
A14: Ratio: | B14: ='FINANCIAL RATIOS ANALYSIS'!E8 -> 0 | E14: Ratio: | F14: ='FINANCIAL RATIOS ANALYSIS'!E11 -> 0 | I14: Ratio: | J14: ='FINANCIAL RATIOS ANALYSIS'!E14 -> 0 | M14: Ratio: | N14: ='FINANCIAL RATIOS ANALYSIS'!E18 -> 
A16: Min:Max | B16: Data Series | E16: Min:Max | F16: Data Series | I16: Min:Max | J16: Data Series | M16: Min:Max | N16: Data Series
A17: 0.03 | B17: =IF($B$14<=$A$17,$B$14," ") -> 0 | E17: 0.12 | F17: =IF(F14<=E17,F14," ") -> 0 | I17: 0.1 | J17: =IF(J14<=I17,J14," ") -> 0 | M17: 0.3 | N17: =IF(N14<=M17,N14," ") -> 
A18: 0.05 | B18: =IF(AND(B14>A17,B14<=A18),B14," ") ->  | E18: 0.24 | F18: =IF(AND(F14>E17,F14<=E18),F14," ") ->  | I18: 0.25 | J18: =IF(AND(J14>I17,J14<=I18),J14," ") ->  | M18: 0.5 | N18: =IF(AND(N14>M17,N14<=M18),N14," ") -> 
A19: 0.06 | B19: =IF(B14>=A19,B14," ") ->  | E19: 0.36 | F19: =IF(F14>E18,F14," ") ->  | I19: 0.5 | J19: =IF(J14>I18,J14," ") ->  | M19: 0.8 | N19: =IF(N14>M18,N14," ") -> 
A20: Difference | B20: =MAX(0.08,B14)-B14 -> 0.08 | E20: Difference | F20: =MAX(1,F14)-F14 -> 1 | I20: Difference | J20: =MAX(1,J14)-J14 -> 1 | M20: Difference | N20: =MAX(1,N14)-N14 -> 
A23: Title | B23: SOLVENCY RATIO | E23: Title | F23: DEBT SERVICE RATIO | I23: Title | J23: FINANCIAL ASSET | M23: Title | N23: INSURANCE COVERAGE
A25: Ratio: | B25: ='FINANCIAL RATIOS ANALYSIS'!E21 ->  | E25: Ratio: | F25: ='FINANCIAL RATIOS ANALYSIS'!E24 -> 0.1876511111 | I25: Ratio: | J25: ='FINANCIAL RATIOS ANALYSIS'!E27 ->  | M25: Ratio: | N25: ='FINANCIAL RATIOS ANALYSIS'!E30 -> 0
A27: Min:Max | B27: Data Series | E27: Min:Max | F27: Data Series | I27: Min:Max | J27: Data Series | M27: Min:Max | N27: Data Series
A28: 0.3 | B28: =IF(B25<A28,B25," ") ->  | E28: 0.25 | F28: =IF(F25<=E28,F25," ") -> 0.1876511111 | I28: 0.3 | J28: =IF(J25<=I28,J25," ") ->  | M28: 0.75 | N28: =IF(N25<=M28,N25," ") -> 0
A29: 0.5 | B29: =IF(AND(B25>A28,B25<=A29),B25," ") ->  | E29: 0.45 | F29: =IF(AND(F25>E28,F25<=E29),F25," ") ->  | I29: 0.5 | J29: =IF(AND(J25>I28,J25<=I29),J25," ") ->  | M29: 1 | N29: =IF(AND(N25>M28,N25<=M29),N25," ") -> 
A30: 0.8 | B30: =IF(B25>A29,B25," ") ->  | E30: 0.65 | F30: =IF(F25>E29,F25," ") ->  | I30: 0.8 | J30: =IF(J25>I29,J25," ") ->  | M30: 1.25 | N30: =IF(N25>M29,N25," ") -> 
A31: Difference | B31: =MAX(1,B25)-B25 ->  | E31: Difference | F31: =MAX(1,F25)-F25 -> 0.8123488889 | I31: Difference | J31: =MAX(1,J25)-J25 ->  | M31: Difference | N31: =MAX(1,N25)-N25 -> 1

Sheet My Configration Page (hidden)
A2: Widget Main Title | C2: Emergency Fund | G2: Widget Main Title | I2: Life Protection | M2: Widget Main Title | O2: Health Protection | S2: Widget Main Title | U2: Critical Illness Prtoection
A4: Widget Units | C4: Rs. In Lakhs | G4: Widget Units | I4: Rs. In Crores | M4: Widget Units | O4: Rs. In Lakh | S4: Widget Units | U4: Rs. In Lakh
A6: Actual Value | C6: ='EMERGENCY FUND'!B4/100000 -> 14.65587 | G6: Actual Value | I6: ='RISK PLANNING'!F26/10000000 -> 0 | M6: Actual Value | O6: ='RISK PLANNING'!F8/100000 -> 0 | S6: Actual Value | U6: ='RISK PLANNING'!F10/100000 -> 0
A8: Minimum Value | C8: 0 | G8: Minimum Value | I8: 0 | M8: Minimum Value | O8: 0 | S8: Minimum Value | U8: 0
A10: Maximum Value | C10: 15 | G10: Maximum Value | I10: ='RISK PLANNING'!H26/10000000 -> 2.3885617 | M10: Maximum Value | O10: ='RISK PLANNING'!D8/100000 -> 10 | S10: Maximum Value | U10: ='RISK PLANNING'!H10/100000 -> 10
A13: Widget Main Title | C13: Accident Protection | G13: Widget Main Title | I13: Child Edu. Protection | M13: Widget Main Title | O13: Aspirational Goal Protection | S13: Widget Main Title | U13: Loan Protection
A15: Widget Units | C15: Rs. In Crore | G15: Widget Units | I15: Rs. In Lakh | M15: Widget Units | O15: Rs. In Lakh | S15: Widget Units | U15: Rs. In Lakh
A17: Actual Value | C17: ='RISK PLANNING'!F19/10000000 -> 0 | G17: Actual Value | I17: ='EDUCATION & MARRIAGE'!Q15/100000 -> 6 | M17: Actual Value | O17: =GOALS!J11/100000 -> 0 | S17: Actual Value | U17: 40
A19: Minimum Value | C19: 0 | G19: Minimum Value | I19: 0 | M19: Minimum Value | O19: 0 | S19: Minimum Value | U19: 0
A21: Maximum Value | C21: ='RISK PLANNING'!H19/10000000 -> 2.3885617 | G21: Maximum Value | I21: ='EDUCATION & MARRIAGE'!I15/100000 -> 0 | M21: Maximum Value | O21: =GOALS!G11/100000 -> 0 | S21: Maximum Value | U21: 100

Sheet My Calculation Page (hidden)
A1: Emergency Fund | I1: ='My Configration Page'!I2 -> Life Protection | Q1: ='My Configration Page'!O2 -> Health Protection | Y1: ='My Configration Page'!U2 -> Critical Illness Prtoection
B2: Value | C2: Degs | J2: Value | K2: Degs | R2: Value | S2: Degs | Z2: Value | AA2: Degs
A3: Min | B3: ='My Configration Page'!C8 -> 0 | C3: 0 | D3: Main Title | E3: ='My Configration Page'!C2 -> Emergency Fund | I3: Min | J3: ='My Configration Page'!I8 -> 0 | K3: 0 | L3: Main Title | M3: ='My Configration Page'!I2 -> Life Protection | Q3: Min | R3: ='My Configration Page'!O8 -> 0 | S3: 0 | T3: Main Title | U3: ='My Configration Page'!O2 -> Health Protection | Y3: Min | Z3: ='My Configration Page'!U8 -> 0 | AA3: 0 | AB3: Main Title | AC3: ='My Configration Page'!U2 -> Critical Illness Prtoection
A4: Max | B4: ='My Configration Page'!C10 -> 15 | C4: 180 | D4: Units | E4: ='My Configration Page'!C4 -> Rs. In Lakhs | I4: Max | J4: ='My Configration Page'!I10 -> 2.3885617 | K4: 180 | L4: Units | M4: ='My Configration Page'!I4 -> Rs. In Crores | Q4: Max | R4: ='My Configration Page'!O10 -> 10 | S4: 180 | T4: Units | U4: ='My Configration Page'!O4 -> Rs. In Lakh | Y4: Max | Z4: ='My Configration Page'!U10 -> 10 | AA4: 180 | AB4: Units | AC4: ='My Configration Page'!U4 -> Rs. In Lakh
A5: Actual | B5: ='My Configration Page'!C6 -> 14.65587 | C5: =((B5-B3)/(B4-B3))*180 -> 175.87044 | I5: Actual | J5: ='My Configration Page'!I6 -> 0 | K5: =((J5-J3)/(J4-J3))*180 -> 0 | Q5: Actual | R5: ='My Configration Page'!O6 -> 0 | S5: =((R5-R3)/(R4-R3))*180 -> 0 | Y5: Actual | Z5: ='My Configration Page'!U6 -> 0 | AA5: =((Z5-Z3)/(Z4-Z3))*180 -> 0
A7: Actual | B7: =B5 -> 14.65587 | C7: Main Title | D7: =E3 -> Emergency Fund | I7: Actual | J7: =J5 -> 0 | K7: Main Title | L7: =M3 -> Life Protection | Q7: Actual | R7: =R5 -> 0 | S7: Main Title | T7: =U3 -> Health Protection | Y7: Actual | Z7: =Z5 -> 0 | AA7: Main Title | AB7: =AC3 -> Critical Illness Prtoection
A8: Scale1 | B8: =B3 -> 0 | C8: Units | D8: =E4 -> Rs. In Lakhs | F8: x | G8: y | I8: Scale1 | J8: =J3 -> 0 | K8: Units | L8: =M4 -> Rs. In Crores | N8: x | O8: y | Q8: Scale1 | R8: =R3 -> 0 | S8: Units | T8: =U4 -> Rs. In Lakh | V8: x | W8: y | Y8: Scale1 | Z8: =Z3 -> 0 | AA8: Units | AB8: =AC4 -> Rs. In Lakh | AD8: x | AE8: y
A9: Scale1 | B9: =((B4-B3)/5)+B3 -> 3 | F9: =50-(50*COS(RADIANS(C5))) -> 99.87018816 | G9: =50*SIN(RADIANS(C5)) -> 3.600601689 | I9: Scale1 | J9: =((J4-J3)/5)+J3 -> 0.47771234 | N9: =50-(50*COS(RADIANS(K5))) -> 0 | O9: =50*SIN(RADIANS(K5)) -> 0 | Q9: Scale1 | R9: =((R4-R3)/5)+R3 -> 2 | V9: =50-(50*COS(RADIANS(S5))) -> 0 | W9: =50*SIN(RADIANS(S5)) -> 0 | Y9: Scale1 | Z9: =((Z4-Z3)/5)+Z3 -> 2 | AD9: =50-(50*COS(RADIANS(AA5))) -> 0 | AE9: =50*SIN(RADIANS(AA5)) -> 0
A10: Scale2 | B10: =((B4-B3)*2/5)+B3 -> 6 | F10: =50-(2*COS(RADIANS(C5+90))) -> 50.14402407 | G10: =2*SIN(RADIANS(C5+90)) -> -1.994807527 | I10: Scale2 | J10: =((J4-J3)*2/5)+J3 -> 0.95542468 | N10: =50-(2*COS(RADIANS(K5+90))) -> 50 | O10: =2*SIN(RADIANS(K5+90)) -> 2 | Q10: Scale2 | R10: =((R4-R3)*2/5)+R3 -> 4 | V10: =50-(2*COS(RADIANS(S5+90))) -> 50 | W10: =2*SIN(RADIANS(S5+90)) -> 2 | Y10: Scale2 | Z10: =((Z4-Z3)*2/5)+Z3 -> 4 | AD10: =50-(2*COS(RADIANS(AA5+90))) -> 50 | AE10: =2*SIN(RADIANS(AA5+90)) -> 2
A11: Scale3 | B11: =((B4-B3)*3/5) + B3 -> 9 | F11: =50-(2*COS(RADIANS(C5-90))) -> 49.85597593 | G11: =2*SIN(RADIANS(C5-90)) -> 1.994807527 | I11: Scale3 | J11: =((J4-J3)*3/5) + J3 -> 1.43313702 | N11: =50-(2*COS(RADIANS(K5-90))) -> 50 | O11: =2*SIN(RADIANS(K5-90)) -> -2 | Q11: Scale3 | R11: =((R4-R3)*3/5) + R3 -> 6 | V11: =50-(2*COS(RADIANS(S5-90))) -> 50 | W11: =2*SIN(RADIANS(S5-90)) -> -2 | Y11: Scale3 | Z11: =((Z4-Z3)*3/5) + Z3 -> 6 | AD11: =50-(2*COS(RADIANS(AA5-90))) -> 50 | AE11: =2*SIN(RADIANS(AA5-90)) -> -2
A12: Scale4 | B12: =((B4-B3)*4/5) + B3 -> 12 | F12: =F9 -> 99.87018816 | G12: =G9 -> 3.600601689 | I12: Scale4 | J12: =((J4-J3)*4/5) + J3 -> 1.91084936 | N12: =N9 -> 0 | O12: =O9 -> 0 | Q12: Scale4 | R12: =((R4-R3)*4/5) + R3 -> 8 | V12: =V9 -> 0 | W12: =W9 -> 0 | Y12: Scale4 | Z12: =((Z4-Z3)*4/5) + Z3 -> 8 | AD12: =AD9 -> 0 | AE12: =AE9 -> 0
A13: Scale5 | B13: =B4 -> 15 | F13: 50 | G13: 0 | I13: Scale5 | J13: =J4 -> 2.3885617 | N13: 50 | O13: 0 | Q13: Scale5 | R13: =R4 -> 10 | V13: 50 | W13: 0 | Y13: Scale5 | Z13: =Z4 -> 10 | AD13: 50 | AE13: 0
A16: ='My Configration Page'!C13 -> Accident Protection | I16: ='My Configration Page'!I13 -> Child Edu. Protection | Q16: ='My Configration Page'!O13 -> Aspirational Goal Protection | Y16: ='My Configration Page'!U13 -> Loan Protection
B17: Value | C17: Degs | J17: Value | K17: Degs | R17: Value | S17: Degs | Z17: Value | AA17: Degs
A18: Min | B18: ='My Configration Page'!C19 -> 0 | C18: 0 | D18: Main Title | E18: ='My Configration Page'!C13 -> Accident Protection | I18: Min | J18: ='My Configration Page'!I19 -> 0 | K18: 0 | L18: Main Title | M18: ='My Configration Page'!I13 -> Child Edu. Protection | Q18: Min | R18: ='My Configration Page'!O19 -> 0 | S18: 0 | T18: Main Title | U18: ='My Configration Page'!O13 -> Aspirational Goal Protection | Y18: Min | Z18: ='My Configration Page'!U19 -> 0 | AA18: 0 | AB18: Main Title | AC18: ='My Configration Page'!U13 -> Loan Protection
A19: Max | B19: ='My Configration Page'!C21 -> 2.3885617 | C19: 180 | D19: Units | E19: ='My Configration Page'!C15 -> Rs. In Crore | I19: Max | J19: ='My Configration Page'!I21 -> 0 | K19: 180 | L19: Units | M19: ='My Configration Page'!I15 -> Rs. In Lakh | Q19: Max | R19: ='My Configration Page'!O21 -> 0 | S19: 180 | T19: Units | U19: ='My Configration Page'!O15 -> Rs. In Lakh | Y19: Max | Z19: ='My Configration Page'!U21 -> 100 | AA19: 180 | AB19: Units | AC19: ='My Configration Page'!U15 -> Rs. In Lakh
A20: Actual | B20: ='My Configration Page'!C17 -> 0 | C20: =((B20-B18)/(B19-B18))*180 -> 0 | I20: Actual | J20: ='My Configration Page'!I17 -> 6 | K20: =((J20-J18)/(J19-J18))*180 ->  | Q20: Actual | R20: ='My Configration Page'!O17 -> 0 | S20: =((R20-R18)/(R19-R18))*180 ->  | Y20: Actual | Z20: ='My Configration Page'!U17 -> 40 | AA20: =((Z20-Z18)/(Z19-Z18))*180 -> 72
A22: Actual | B22: =B20 -> 0 | C22: Main Title | D22: =E18 -> Accident Protection | I22: Actual | J22: =J20 -> 6 | K22: Main Title | L22: =M18 -> Child Edu. Protection | Q22: Actual | R22: =R20 -> 0 | S22: Main Title | T22: =U18 -> Aspirational Goal Protection | Y22: Actual | Z22: =Z20 -> 40 | AA22: Main Title | AB22: =AC18 -> Loan Protection
A23: Scale1 | B23: =B18 -> 0 | C23: Units | D23: =E19 -> Rs. In Crore | F23: x | G23: y | I23: Scale1 | J23: =J18 -> 0 | K23: Units | L23: =M19 -> Rs. In Lakh | N23: x | O23: y | Q23: Scale1 | R23: =R18 -> 0 | S23: Units | T23: =U19 -> Rs. In Lakh | V23: x | W23: y | Y23: Scale1 | Z23: =Z18 -> 0 | AA23: Units | AB23: =AC19 -> Rs. In Lakh | AD23: x | AE23: y
A24: Scale1 | B24: =((B19-B18)/5)+B18 -> 0.47771234 | F24: =50-(50*COS(RADIANS(C20))) -> 0 | G24: =50*SIN(RADIANS(C20)) -> 0 | I24: Scale1 | J24: =((J19-J18)/5)+J18 -> 0 | N24: =50-(50*COS(RADIANS(K20))) ->  | O24: =50*SIN(RADIANS(K20)) ->  | Q24: Scale1 | R24: =((R19-R18)/5)+R18 -> 0 | V24: =50-(50*COS(RADIANS(S20))) ->  | W24: =50*SIN(RADIANS(S20)) ->  | Y24: Scale1 | Z24: =((Z19-Z18)/5)+Z18 -> 20 | AD24: =50-(50*COS(RADIANS(AA20))) -> 34.54915028 | AE24: =50*SIN(RADIANS(AA20)) -> 47.55282581
A25: Scale2 | B25: =((B19-B18)*2/5)+B18 -> 0.95542468 | F25: =50-(2*COS(RADIANS(C20+90))) -> 50 | G25: =2*SIN(RADIANS(C20+90)) -> 2 | I25: Scale2 | J25: =((J19-J18)*2/5)+J18 -> 0 | N25: =50-(2*COS(RADIANS(K20+90))) ->  | O25: =2*SIN(RADIANS(K20+90)) ->  | Q25: Scale2 | R25: =((R19-R18)*2/5)+R18 -> 0 | V25: =50-(2*COS(RADIANS(S20+90))) ->  | W25: =2*SIN(RADIANS(S20+90)) ->  | Y25: Scale2 | Z25: =((Z19-Z18)*2/5)+Z18 -> 40 | AD25: =50-(2*COS(RADIANS(AA20+90))) -> 51.90211303 | AE25: =2*SIN(RADIANS(AA20+90)) -> 0.6180339887
A26: Scale3 | B26: =((B19-B18)*3/5) + B18 -> 1.43313702 | F26: =50-(2*COS(RADIANS(C20-90))) -> 50 | G26: =2*SIN(RADIANS(C20-90)) -> -2 | I26: Scale3 | J26: =((J19-J18)*3/5) + J18 -> 0 | N26: =50-(2*COS(RADIANS(K20-90))) ->  | O26: =2*SIN(RADIANS(K20-90)) ->  | Q26: Scale3 | R26: =((R19-R18)*3/5) + R18 -> 0 | V26: =50-(2*COS(RADIANS(S20-90))) ->  | W26: =2*SIN(RADIANS(S20-90)) ->  | Y26: Scale3 | Z26: =((Z19-Z18)*3/5) + Z18 -> 60 | AD26: =50-(2*COS(RADIANS(AA20-90))) -> 48.09788697 | AE26: =2*SIN(RADIANS(AA20-90)) -> -0.6180339887
A27: Scale4 | B27: =((B19-B18)*4/5) + B18 -> 1.91084936 | F27: =F24 -> 0 | G27: =G24 -> 0 | I27: Scale4 | J27: =((J19-J18)*4/5) + J18 -> 0 | N27: =N24 ->  | O27: =O24 ->  | Q27: Scale4 | R27: =((R19-R18)*4/5) + R18 -> 0 | V27: =V24 ->  | W27: =W24 ->  | Y27: Scale4 | Z27: =((Z19-Z18)*4/5) + Z18 -> 80 | AD27: =AD24 -> 34.54915028 | AE27: =AE24 -> 47.55282581
A28: Scale5 | B28: =B19 -> 2.3885617 | F28: 50 | G28: 0 | I28: Scale5 | J28: =J19 -> 0 | N28: 50 | O28: 0 | Q28: Scale5 | R28: =R19 -> 0 | V28: 50 | W28: 0 | Y28: Scale5 | Z28: =Z19 -> 100 | AD28: 50 | AE28: 0

Sheet DATA (hidden)
A2: FINANCIAL PLANNING DATA SHEET | F2: DATE OF PLAN | G2: YEAR | H2: Financial Planner Name
A3: N.B: DO NOT FILL ANY THING AT RED COLORED BOXES | G3: 2024 | H3: XXX
A4: 1 | B4: FAMILY DETAILS | E4: OCCUPATION & DESIGNATION | F4: DEPENDENT | G4: EDUCATIONAL QUALIFICATION | H4: PAN NO | I4: AGE | J4: HEALTH STATUS
A5: SR.NO | B5: NAME | C5: DOB | D5: RELATION | F5: YES / NO
A6: =+INPUT!A4 -> 1 | B6: =+INPUT!B4 -> 0 | C6: =+INPUT!G4 -> 00:00:00 | D6: =+INPUT!E4 -> Self | E6: ='B I S'!D13 -> 00:00:00 | F6: No | H6: =INPUT!H4 -> 0 | I6: =INT((TODAY()-C6)/365.25) -> 125 | J6: Good
A7: =+INPUT!A5 -> 2 | B7: =+INPUT!B5 -> 0 | C7: =+INPUT!G5 -> 00:00:00 | D7: =+INPUT!E5 -> Spouse | E7: ='B I S'!H22 -> 00:00:00 | F7: ='B I S'!F22 -> NO | G7: ='B I S'!G22 -> 0 | H7: =INPUT!H5 -> 0 | I7: =INT((TODAY()-C7)/365.25) -> 125 | J7: ='B I S'!J22 -> 0
A8: =+INPUT!A6 -> 3 | B8: =+INPUT!B6 -> 0 | C8: =+INPUT!G6 -> 00:00:00 | D8: =+INPUT!E6 -> Son / Daughter | E8: ='B I S'!H23 -> 00:00:00 | F8: ='B I S'!F23 -> YES | G8: ='B I S'!G23 -> 00:00:00 | H8: =INPUT!H6 -> 0 | I8: 125 | J8: ='B I S'!J23 -> 0
A9: =+INPUT!A7 -> 4 | B9: =+INPUT!B7 -> 0 | C9: =+INPUT!G7 -> 00:00:00 | D9: =+INPUT!E7 -> Son / Daughter | H9: =INPUT!H7 -> 0 | I9: 125
A10: =+INPUT!A8 -> 5 | B10: =+INPUT!B8 -> 0 | C10: =+INPUT!G8 -> 00:00:00 | D10: =+INPUT!E8 -> Son / Daughter | H10: =INPUT!H8 -> 0 | I10: 125
A11: =+INPUT!A9 -> 6 | B11: =+INPUT!B9 -> 0 | C11: =+INPUT!G9 -> 00:00:00 | D11: =+INPUT!E9 -> Father | H11: =INPUT!H9 -> 0 | I11: 125
A12: =+INPUT!A10 -> 7 | B12: =+INPUT!B10 -> 0 | C12: =+INPUT!G10 -> 00:00:00 | D12: =+INPUT!E10 -> Mother | H12: =INPUT!H10 -> 0 | I12: 125
A14: 2 | B14: NAME | C14: CONTACT NO | D14: EMAIL | F14: CONTACT TIME | G14: ADDRESS | I14: PREFERED
A15: =+INPUT!A13 -> 1 | B15: =+INPUT!B13 -> 0 | C15: =+INPUT!F13 -> 0 | D15: =+INPUT!H13 -> 0
A16: =+INPUT!A14 -> 2 | B16: =+INPUT!B14 -> 0 | C16: =+INPUT!F14 -> 0 | D16: =+INPUT!H14 -> 0
A17: =+INPUT!A15 -> 3 | B17: =+INPUT!B15 -> 0 | C17: =+INPUT!F15 -> 0 | D17: =+INPUT!H15 -> 0
A18: =+INPUT!A16 -> 4 | B18: =+INPUT!B16 -> 0 | C18: =+INPUT!F16 -> 0 | D18: =+INPUT!H16 -> 0
A20: 3 | B20: FAMILY LIVING EXPENSES / OUT FLOWS
A21: SR.NO | B21: CONSUMPTION EXPENSES / FAMILY`S EXPENSES | C21: CURRENT MONTHLY EXPENSES | D21: YEARLY IRREGULAR EXPENSES | E21: ANNUALISED EXPENSES | F21: % OF INCOME (Per Anum) | H21: POST - RETIRE MLY EXPS
A22: =+INPUT!A20 -> Household Expenses | B22: =+INPUT!B20 -> 0 | C22: =+INPUT!E20 -> 0 | D22: =+INPUT!G20 -> 0 | E22: =D22+(C22*12) -> 0 | F22: =E22/$F$77 -> 0 | H22: =+INPUT!J20 -> 0
A23: =+INPUT!A21 -> 1 | B23: =+INPUT!B21 -> Grocery & Toiletaries | C23: =+INPUT!E21 -> 0 | D23: =+INPUT!G21 -> 0 | E23: =D23+(C23*12) -> 0 | F23: 0 | H23: =+INPUT!J21 -> 0
A24: =+INPUT!A22 -> 2 | B24: =+INPUT!B22 -> House - Rent, Maintenance, Repair | C24: =+INPUT!E22 -> 75000 | D24: =+INPUT!G22 -> 0 | E24: 900000 | F24: 0.1666666667 | H24: =+INPUT!J22 -> 60000
A25: =+INPUT!A23 -> 3 | B25: =+INPUT!B23 -> Vehicle - Fuel , Servicing / Conveyance | C25: =+INPUT!E23 -> 0 | D25: =+INPUT!G23 -> 0 | E25: 0 | F25: 0 | H25: =+INPUT!J23 -> 0
A26: =+INPUT!A24 -> 4 | B26: =+INPUT!B24 -> Health - Doctor visits , Medicines | C26: =+INPUT!E24 -> 0 | D26: =+INPUT!G24 -> 0 | E26: 0 | F26: 0 | H26: =+INPUT!J24 -> 0
A27: =+INPUT!A25 -> 5 | B27: =+INPUT!B25 -> Necessities - Electricity, Property tax | C27: =+INPUT!E25 -> 0 | D27: =+INPUT!G25 -> 0 | E27: 0 | F27: 0 | H27: =+INPUT!J25 -> 0
A28: =+INPUT!A26 -> 6 | B28: =+INPUT!B26 -> House Utilities - Maid, Laundary, Newspaper etc. | C28: =+INPUT!E26 -> 0 | D28: =+INPUT!G26 -> 0 | E28: 0 | F28: 0 | H28: =+INPUT!J26 -> 0
A29: =+INPUT!A27 -> 7 | B29: =+INPUT!B27 -> Gadgets - Mobile, TV, Internet, Online subscriptions etc. | C29: =+INPUT!E27 -> 0 | D29: =+INPUT!G27 -> 0 | E29: 0 | F29: 0 | H29: =+INPUT!J27 -> 0
A30: =+INPUT!A28 -> Lifestyle Expenses | B30: =+INPUT!B28 -> 0 | C30: =+INPUT!E28 -> 0 | D30: =+INPUT!G28 -> 0 | E30: 0 | F30: 0 | H30: =+INPUT!J28 -> 0
A31: =+INPUT!A29 -> 1 | B31: =+INPUT!B29 -> Clothes & Accessories | C31: =+INPUT!E29 -> 0 | D31: =+INPUT!G29 -> 0 | E31: 0 | F31: 0 | H31: =+INPUT!J29 -> 0
A32: =+INPUT!A30 -> 2 | B32: =+INPUT!B30 -> Shopping, Gifts & buying new Gadgets | C32: =+INPUT!E30 -> 0 | D32: =+INPUT!G30 -> 0 | E32: 0 | F32: 0 | H32: =+INPUT!J30 -> 0
A33: =+INPUT!A31 -> 3 | B33: =+INPUT!B31 -> Dining , Movies, Sports | C33: =+INPUT!E31 -> 0 | D33: =+INPUT!G31 -> 0 | E33: 0 | F33: 0 | H33: =+INPUT!J31 -> 0
A34: =+INPUT!A32 -> 4 | B34: =+INPUT!B32 -> Coach - Financial, Fitness, Personal | C34: =+INPUT!E32 -> 0 | D34: =+INPUT!G32 -> 0 | E34: 0 | F34: 0 | H34: =+INPUT!J32 -> 0
A35: =+INPUT!A33 -> 5 | B35: =+INPUT!B33 -> Travel, Annual holidays | C35: =+INPUT!E33 -> 0 | D35: =+INPUT!G33 -> 0 | E35: 0 | F35: 0 | H35: =+INPUT!J33 -> 0
A36: =+INPUT!A34 -> 6 | B36: =+INPUT!B34 -> Charity, Donations etc. | C36: =+INPUT!E34 -> 0 | D36: =+INPUT!G34 -> 0 | E36: 0 | F36: 0 | H36: =+INPUT!J34 -> 0
A37: =+INPUT!A35 -> 7 | B37: =+INPUT!B35 -> House renovations, Celebrations etc. | C37: =+INPUT!E35 -> 0 | D37: =+INPUT!G35 -> 0 | E37: 0 | F37: 0 | H37: =+INPUT!J35 -> 0
A38: =+INPUT!A36 -> Dependent Expenses | B38: =+INPUT!B36 -> 0 | C38: =+INPUT!E36 -> 0 | D38: =+INPUT!G36 -> 0 | E38: 0 | F38: 0 | H38: =+INPUT!J36 -> 0
A39: =+INPUT!A37 -> 1 | B39: =+INPUT!B37 -> Children school / college fees | C39: =+INPUT!E37 -> 3400 | D39: =+INPUT!G37 -> 0 | E39: 40800 | F39: 0.007555555556 | H39: =+INPUT!J37 -> 2720
A40: =+INPUT!A38 -> 2 | B40: =+INPUT!B38 -> Children pocket money / other expenses | C40: =+INPUT!E38 -> 0 | D40: =+INPUT!G38 -> 0 | E40: 0 | F40: 0 | H40: =+INPUT!J38 -> 0
A41: =+INPUT!A39 -> 3 | B41: =+INPUT!B39 -> Contribution to parents, siblings etc. | C41: =+INPUT!E39 -> 0 | D41: =+INPUT!G39 -> 0 | E41: 0 | F41: 0 | H41: =+INPUT!J39 -> 0
A42: =+INPUT!A40 -> Misc. | B42: =+INPUT!B40 -> 0 | C42: =+INPUT!E40 -> 0 | D42: =+INPUT!G40 -> 0 | E42: =D42+(C42*12) -> 0 | F42: =E43/$F$77 -> 0 | H42: =+INPUT!J40 -> 0
A43: =+INPUT!A41 -> 1 | B43: =+INPUT!B41 -> Personal Expenses | C43: =+INPUT!E41 -> 0 | D43: =+INPUT!G41 -> 0 | E43: =D43+(C43*12) -> 0 | F43: =E42/$F$77 -> 0 | H43: =+INPUT!J41 -> 0
A44: =+INPUT!A42 -> 2 | B44: =+INPUT!B42 -> Total Household Expenses | C44: =+INPUT!E42 -> 0 | D44: =+INPUT!G42 -> 0 | E44: =D44+(C44*12) -> 0 | F44: =E43/$F$77 -> 0 | H44: =+INPUT!J42 -> 0
B45: TOTAL MONTHLY REGULAR EXPS | C45: =SUM(C22:C44) -> 78400 | D45: =SUM(D22:D44)/12 -> 0 | E45: 940800 | F45: =E47/F77 -> 0.1742222222 | H45: =SUM(H22:H44) -> 62720
B46: TOTAL YEARLY EXPNESES | C46: =C45*12 -> 940800 | D46: =D45*12 -> 0 | E46: =SUM(E22:E43) -> 940800 | H46: =H45*12 -> 752640
B47: TOTAL REGULAR + IRREGULAR EXPS (A) | C47: =C45+D45 -> 78400 | E47: =C47*12 -> 940800
A50: 4 | B50: LOAN DETAILS
A51: SR.NO | B51: TYPE OF LOAN | C51: LOAN AMOUNT | D51: EMI AMOUNT | E51: OUTSTANDING AMOUNT | F51: PENDING TERM (YEARS) | G51: INTEREST RATE P.A | H51: BANK NAME | I51: JOINT / SINGLE NAME | J51: INCOME PERCENTAGE
A52: 1 | B52: =+INPUT!B48 -> Home Loan | C52: =+INPUT!H48 -> 0 | D52: =+INPUT!G48 -> 84443 | E52: =+INPUT!J48 -> 8205617 | F52: =+INPUT!L48 -> 0 | J52: =(D52*12)/$F$77 -> 0.1876511111
A53: 2 | B53: =+INPUT!B49 -> Car Loan | C53: =+INPUT!H49 -> 0 | D53: =+INPUT!G49 -> 0 | E53: =+INPUT!J49 -> 0 | F53: =+INPUT!L49 -> 0 | J53: 0
A54: 3 | B54: =+INPUT!B50 -> Personal Loan | C54: =+INPUT!H50 -> 0 | D54: =+INPUT!G50 -> 0 | E54: =+INPUT!J50 -> 0 | F54: =+INPUT!L50 -> 0 | J54: 0
A55: 4 | B55: =+INPUT!B51 -> Education Loan | C55: =+INPUT!H51 -> 0 | D55: =+INPUT!G51 -> 0 | E55: =+INPUT!J51 -> 0 | F55: =+INPUT!L51 -> 0 | J55: 0
A56: 5 | B56: =+INPUT!B52 ->  | C56: =+INPUT!H52 -> 0 | D56: =+INPUT!G52 -> 0 | E56: =+INPUT!J52 -> 0 | F56: =+INPUT!L52 -> 0 | J56: 0
A57: 6 | B57: =+INPUT!B53 ->  | C57: =+INPUT!H53 -> 0 | D57: =+INPUT!G53 -> 0 | E57: =+INPUT!J53 -> 0 | F57: =+INPUT!L53 -> 0 | J57: 0
A58: 7 | B58: =+INPUT!B54 ->  | C58: =+INPUT!H54 -> 0 | D58: =+INPUT!G54 -> 0 | E58: =+INPUT!J54 -> 0 | F58: =+INPUT!L54 -> 0 | J58: 0
B59: TOTAL <C> | C59: =SUM(C52:C58) -> 0 | D59: =SUM(D52:D58) -> 84443 | E59: =SUM(E52:E58) -> 8205617 | J59: 0.1876511111
A62: 5 | B62: FAMILY INFLOWS / INCOMES
B63: PARTULARS | C63: GROSS MONTHLY | D63: DEDUCTIONS | E63: NET MONTHLY | F63: YEARLY
A64: =+INPUT!A59 -> 1 | B64: =+INPUT!B59 -> Self Salary | C64: =+INPUT!F59 -> 300000 | D64: =+INPUT!H59 -> 0 | E64: =C64-D64 -> 300000 | F64: =E64*12 -> 3600000
A65: =+INPUT!A60 -> 2 | B65: =+INPUT!B60 -> Spouse Salary | C65: =+INPUT!F60 -> 150000 | D65: =+INPUT!H60 -> 0 | E65: 150000 | F65: 1800000
A66: =+INPUT!A61 -> 3 | B66: =+INPUT!B61 -> Business Income | C66: =+INPUT!F61 -> 0 | D66: =+INPUT!H61 -> 0 | E66: 0 | F66: 0
A67: =+INPUT!A62 -> 4 | B67: =+INPUT!B62 -> Rent Income | C67: =+INPUT!F62 -> 0 | D67: =+INPUT!H62 -> 0 | E67: 0 | F67: 0
A68: =+INPUT!A63 -> 5 | B68: =+INPUT!B63 -> Parents Income | C68: =+INPUT!F63 -> 0 | D68: =+INPUT!H63 -> 0 | E68: 0 | F68: 0
A69: =+INPUT!A64 -> 6 | B69: =+INPUT!B64 -> Childrens Income | C69: =+INPUT!F64 -> 0 | D69: =+INPUT!H64 -> 0 | E69: 0 | F69: 0
A70: =+INPUT!A65 -> 7 | B70: =+INPUT!B65 -> Brother Income | C70: =+INPUT!F65 -> 0 | D70: =+INPUT!H65 -> 0 | E70: 0 | F70: 0
A71: =+INPUT!A66 -> 8 | B71: =+INPUT!B66 -> Sister Income | C71: =+INPUT!F66 -> 0 | D71: =+INPUT!H66 -> 0 | E71: 0 | F71: 0
A72: =+INPUT!A67 -> 9 | B72: =+INPUT!B67 -> Dividend Income | C72: =+INPUT!F67 -> 0 | D72: =+INPUT!H67 -> 0 | E72: 0 | F72: =E72 -> 0
A73: =+INPUT!A68 -> 10 | B73: =+INPUT!B68 -> Interest Income | C73: =+INPUT!F68 -> 0 | D73: =+INPUT!H68 -> 0 | E73: 0 | F73: =E73*12 -> 0
A74: =+INPUT!A69 -> 11 | B74: =+INPUT!B69 -> Agri Income | C74: =+INPUT!F69 -> 0 | D74: =+INPUT!H69 -> 0 | E74: 0 | F74: =E74 -> 0
A75: =+INPUT!A70 -> 12 | B75: =+INPUT!B70 -> Other Income | C75: =+INPUT!F70 -> 0 | D75: =+INPUT!H70 -> 0 | E75: 0 | F75: =E75 -> 0
D76: =+INPUT!H71 -> 0 | E76: 0
B77: TOTAL | C77: =SUM(C64:C76) -> 450000 | D77: =SUM(D64:D76) -> 0 | E77: =SUM(E64:E76) -> 450000 | F77: =SUM(F64:F76) -> 5400000
A80: 6 | B80: ASPIRATIONAL GOALS/ NEEDS/ DREAMS
B81: ASPIRATIONAL GOALS/ NEEDS/ DREAMS | C81: GOAL YEAR | D81: NO OF YRS LEFT | E81: INFLATION RATE | F81: PRESENT VALUE | G81: EXISTING PROVISION, IF ANY
A82: =+INPUT!A76 -> 1 | B82: =+INPUT!B76 -> Kirtana's wellness Resort | C82: =+INPUT!G76 -> 2034 | D82: =C82-$G$3 -> 10 | E82: 0.07 | F82: =+INPUT!L76 -> 0
A83: =+INPUT!A77 -> 2 | B83: =+INPUT!B77 -> Kirtana Yoga Office | C83: =+INPUT!G77 -> 2029 | D83: =C83-$G$3 -> 5 | E83: 0.07 | F83: =+INPUT!L77 -> 0
A84: =+INPUT!A78 -> 3 | B84: =+INPUT!B78 -> International Tour | C84: =+INPUT!G78 -> 2029 | D84: 5 | E84: 0.07 | F84: =+INPUT!L78 -> 0
A85: =+INPUT!A79 -> 4 | B85: =+INPUT!B79 -> 0 | C85: =+INPUT!G79 -> 0 | D85: -2024 | E85: 0.07 | F85: =+INPUT!L79 -> 0
A86: =+INPUT!A80 -> 5 | B86: =+INPUT!B80 -> 0 | C86: =+INPUT!G80 -> 0 | D86: -2024 | E86: 0.07 | F86: =+INPUT!L80 -> 0
A87: =+INPUT!A81 -> 6 | B87: =+INPUT!B81 -> 0 | C87: =+INPUT!G81 -> 0 | D87: -2024 | E87: 0.07 | F87: =+INPUT!L81 -> 0
A88: =+INPUT!A82 -> 7 | B88: =+INPUT!B82 -> 0 | C88: =+INPUT!G82 -> 0 | D88: -2024 | E88: 0.07 | F88: =+INPUT!L82 -> 0
B89: Total | F89: =SUM(F82:F88) -> 0
A91: 7 | B91: ANY EMPLOYER PROVIDED BENEFITS
B92: BENEFITS | C92: AMOUNT | D92: PROVIDE DETAILS, IF REQUIRED | F92: WHO ALL ARE COVERED IN FAMILY
A93: =+INPUT!A87 -> 1 | B93: =+INPUT!B87 -> Mediclaim - Health Cover | C93: =+INPUT!G87 -> 0 | D93: =+INPUT!H87 -> 0 | F93: =+INPUT!L87 -> 0
A94: =+INPUT!A88 -> 2 | B94: =+INPUT!B88 -> Life Cover if any ( e.g. group term insurance) | C94: =+INPUT!G88 -> 0 | D94: =+INPUT!H88 -> 0 | F94: =+INPUT!L88 -> 0
A95: =+INPUT!A89 -> 3 | B95: =+INPUT!B89 -> Accidental Cover if any | C95: =+INPUT!G89 -> 0 | D95: =+INPUT!H89 -> 0 | F95: =+INPUT!L89 -> 0

Sheet EXISTING ASSETS & INVESTMENTS (hidden)
B2: TYPE OF INVESTMENTS | C2: SUB TYPE | D2: NAME OF THE BANK/ COMPANY/ FINANCIAL INSTITUTION | E2: FOLIO NUMBER/ ACCOUNT NUMBER | F2: NAME OF THE SCHEME / INVESTMENT / TYPE OF A/C | G2: DATE OF COMMENCEMENT / OPENING | H2: DATE OF MATURITY | I2: TERM | J2: INVESTMENT YEARS | K2: INVESTMENT AMT IF REGULAR | L2: Mode Yearly or current value = 1, HALF yearly = 2, Quarterly = 4, Monthly = 12 | M2: ANNUALISED REGULAR SAVINGS & INVESTMENTS | N2: FACE VALUE/ PRINCIPAL IF LUMSUM | O2: INVESTOR | P2: HOLDING TYPE | Q2: NOMINEE | R2: CURRENT ACCUMULATED VALUE | S2: Maturity YEAR | T2: GOAL / PURPOSE | U2: GOAL YEAR | V2: ALLOCATED LUMPSUM AMOUNT | W2: ALLOCATED REGULAR AMOUNT | X2: NO OF YEARS TO GOAL | Y2: Mode Yearly = 1, HALF yearly = 2, Quarterly = 4, Monthly = 12 | Z2: EXPECTED RETURN | AA2: FV IN THE YEAR OF GOAL
A3: 9 | B3: FINANCIAL ASSETS & INVESTMENTS
A4: =INPUT!A108 -> 1 | B4: =+INPUT!B108 -> Bank 1 - Savings balance | F4: =+INPUT!G108 -> 0 | K4: =+INPUT!J108 -> 0 | L4: =+INPUT!L108 -> 0 | M4: =K4*L4 -> 0 | R4: =+INPUT!H108 -> 0 | AA4: =FV(Z4/Y4,Y4*X4,-W4,-V4,1) -> 
A5: =INPUT!A109 -> 2 | B5: =+INPUT!B109 -> Bank 2 - Savings balance | F5: =+INPUT!G109 -> 0 | K5: =+INPUT!J109 -> 0 | L5: =+INPUT!L109 -> 0 | M5: =K5*L5 -> 0 | R5: =+INPUT!H109 -> 0
A6: =INPUT!A110 -> 3 | B6: =+INPUT!B110 -> Bank 3 - Savings balance | F6: =+INPUT!G110 -> 0 | K6: =+INPUT!J110 -> 0 | L6: =+INPUT!L110 -> 0 | M6: 0 | R6: =+INPUT!H110 -> 0
A7: =INPUT!A111 -> 4 | B7: =+INPUT!B111 -> Fixed Deposit - SBI | F7: =+INPUT!G111 -> 0 | K7: =+INPUT!J111 -> 0 | L7: =+INPUT!L111 -> 0 | M7: 0 | R7: =+INPUT!H111 -> 0
A8: =INPUT!A112 -> 5 | B8: =+INPUT!B112 -> Fixed Deposit - Bank ….. | F8: =+INPUT!G112 -> 0 | K8: =+INPUT!J112 -> 0 | L8: =+INPUT!L112 -> 0 | M8: 0 | R8: =+INPUT!H112 -> 0 | AA8: =FV(Z8/Y8,Y8*X8,-W8,-V8,1) -> 
A9: =INPUT!A113 -> 6 | B9: =+INPUT!B113 -> Employee Provident fund (EPF) | F9: =+INPUT!G113 -> 0 | K9: =+INPUT!J113 -> 0 | L9: =+INPUT!L113 -> 0 | M9: 0 | R9: =+INPUT!H113 -> 0 | AA9: =FV(Z9/Y9,Y9*X9,-W9,-V9,1) -> 
A10: =INPUT!A114 -> 7 | B10: =+INPUT!B114 -> Public Provident Fund (PPF) | F10: =+INPUT!G114 -> 0 | K10: =+INPUT!J114 -> 0 | L10: =+INPUT!L114 -> 0 | R10: =+INPUT!H114 -> 0
A11: =INPUT!A115 -> 8 | B11: =+INPUT!B115 -> Recurring Deposits (RD) | F11: =+INPUT!G115 -> 0 | K11: =+INPUT!J115 -> 0 | L11: =+INPUT!L115 -> 0 | M11: 0 | R11: =+INPUT!H115 -> 0
A12: =INPUT!A116 -> 9 | B12: =+INPUT!B116 -> Mutual Funds ( Attach separate sheet if no. of schemes are more) | F12: =+INPUT!G116 -> 0 | K12: =+INPUT!J116 -> 0 | L12: =+INPUT!L116 -> 0 | M12: 0 | R12: =+INPUT!H116 -> 0 | T12: Sameer Higher Education | U12: 2039 | V12: 600000 | W12: 1 | X12: 15 | Y12: 1 | Z12: 0.12 | AA12: 3284181.209
A13: =INPUT!A117 -> 10 | B13: =+INPUT!B117 -> Post - MIS | F13: =+INPUT!G117 -> 0 | K13: =+INPUT!J117 -> 0 | L13: =+INPUT!L117 -> 0 | M13: 0 | R13: =+INPUT!H117 -> 0
A14: =INPUT!A118 -> 11 | B14: =+INPUT!B118 -> NSC / KVP | F14: =+INPUT!G118 -> 0 | K14: =+INPUT!J118 -> 0 | L14: =+INPUT!L118 -> 0 | M14: 0 | R14: =+INPUT!H118 -> 0
A15: =INPUT!A119 -> 12 | B15: =+INPUT!B119 -> Corporate FD | F15: =+INPUT!G119 -> 0 | K15: =+INPUT!J119 -> 0 | L15: =+INPUT!L119 -> 0 | M15: 0 | R15: =+INPUT!H119 -> 0
A16: =INPUT!A120 -> 13 | B16: =+INPUT!B120 -> Sukanya Samrridhi Yojana | F16: =+INPUT!G120 -> 0 | K16: =+INPUT!J120 -> 0 | L16: =+INPUT!L120 -> 0 | M16: 0 | R16: =+INPUT!H120 -> 0
A17: =INPUT!A121 -> 14 | B17: =+INPUT!B121 -> Shares ( Attach separate sheet if no. of shares are more) | F17: =+INPUT!G121 -> 0 | K17: =+INPUT!J121 -> 0 | L17: =+INPUT!L121 -> 0 | M17: 0 | R17: =+INPUT!H121 -> 0
A18: =INPUT!A122 -> 15 | B18: =+INPUT!B122 -> career transition fund | F18: =+INPUT!G122 -> 0 | K18: =+INPUT!J122 -> 0 | L18: =+INPUT!L122 -> 0 | M18: 0 | R18: =+INPUT!H122 -> 0
A19: =INPUT!A123 -> 16 | B19: =+INPUT!B123 -> 0 | F19: =+INPUT!G123 -> 0 | K19: =+INPUT!J123 -> 0 | L19: =+INPUT!L123 -> 0 | M19: 0 | R19: =+INPUT!H123 -> 0 | AA19: =FV(Z19/Y19,Y19*X19,-W19,-V19,1) -> 
A20: =INPUT!A124 -> 17 | B20: =+INPUT!B124 ->  | F20: =+INPUT!G124 -> 0 | K20: =+INPUT!J124 -> 0 | L20: =+INPUT!L124 -> 0 | M20: 0 | R20: =+INPUT!H124 -> 0
A21: =INPUT!A125 -> 18 | B21: =+INPUT!B125 -> 0 | F21: =+INPUT!G125 -> 0 | K21: =+INPUT!J125 -> 0 | L21: =+INPUT!L125 -> 0 | M21: 0 | R21: =+INPUT!H125 -> 0
A22: =INPUT!A126 -> 19 | B22: =+INPUT!B126 -> 0 | F22: =+INPUT!G126 -> 0 | K22: =+INPUT!J126 -> 0 | L22: =+INPUT!L126 -> 0 | M22: 0 | R22: =+INPUT!H126 -> 0
A23: =INPUT!A127 -> 20 | B23: =+INPUT!B127 -> 0 | F23: =+INPUT!G127 -> 0 | K23: =+INPUT!J127 -> 0 | L23: =+INPUT!L127 -> 0 | M23: 0 | R23: =+INPUT!H127 -> 0
A24: =INPUT!A128 -> 21 | B24: =+INPUT!B128 -> 0 | F24: =+INPUT!G128 -> 0 | K24: =+INPUT!J128 -> 0 | L24: =+INPUT!L128 -> 0 | M24: 0 | R24: =+INPUT!H128 -> 0
A25: =INPUT!A129 -> 22 | B25: =+INPUT!B129 -> 0 | F25: =+INPUT!G129 -> 0 | K25: =+INPUT!J129 -> 0 | L25: =+INPUT!L129 -> 0 | M25: 0 | R25: =+INPUT!H129 -> 0
A26: =INPUT!A130 -> 23 | B26: =+INPUT!B130 -> 0 | F26: =+INPUT!G130 -> 0 | K26: =+INPUT!J130 -> 0 | L26: =+INPUT!L130 -> 0 | M26: 0 | R26: =+INPUT!H130 -> 0
A27: =INPUT!A131 -> 24 | B27: =+INPUT!B131 -> 0 | F27: =+INPUT!G131 -> 0 | K27: =+INPUT!J131 -> 0 | L27: =+INPUT!L131 -> 0 | M27: 0 | R27: =+INPUT!H131 -> 0
A28: =INPUT!A132 -> 25 | B28: =+INPUT!B132 -> Any Other Regular / Irregular Investments | F28: =+INPUT!G132 -> 0 | K28: =+INPUT!J132 -> 0 | L28: =+INPUT!L132 -> 0 | M28: 0 | R28: =+INPUT!H132 -> 0
K29: =SUM(K4:K28) -> 0 | M29: =SUM(M4:M28) -> 0 | R29: =SUM(R4:R28) -> 0
A34: 10 | B34: NON FINANCIAL ASSETS & INVESTMENTS
A35: =INPUT!A138 -> 1 | B35: =+INPUT!B138 -> Self Occupied Property | C35: =+INPUT!G138 -> SELF | D35: 1 | R35: =+INPUT!I138 -> 0
A36: =INPUT!A139 -> 2 | B36: =+INPUT!B139 -> Gold Ornaments | C36: =+INPUT!G139 -> GOLD | R36: =+INPUT!I139 -> 0
A37: =INPUT!A140 -> 3 | B37: =+INPUT!B140 -> CAR /BYKE | C37: =+INPUT!G140 -> CAR | R37: =+INPUT!I140 -> 0
A38: =INPUT!A141 -> 4 | B38: =+INPUT!B141 -> Investment Flat 1 | C38: =+INPUT!G141 -> INVESTMENT | R38: =+INPUT!I141 -> 0
A39: =INPUT!A142 -> 5 | B39: =+INPUT!B142 -> Investment Flat 2 | C39: =+INPUT!G142 -> INVESTMENT | R39: =+INPUT!I142 -> 0
A40: =INPUT!A143 -> 6 | B40: =+INPUT!B143 -> PLOT | C40: =+INPUT!G143 -> PLOT | R40: =+INPUT!I143 -> 0
A41: =INPUT!A144 -> 7 | B41: =+INPUT!B144 -> Gold Coins | C41: =+INPUT!G144 -> GOLD | R41: =+INPUT!I144 -> 0
A42: =INPUT!A145 -> 8 | B42: =+INPUT!B145 -> Gold Fund / ETF | C42: =+INPUT!G145 -> GOLD | R42: =+INPUT!I145 -> 0
A43: =INPUT!A146 -> 9 | B43: =+INPUT!B146 -> Ancestral Property | C43: =+INPUT!G146 -> ANCESTRAL | R43: =+INPUT!I146 -> 0
M44: =SUM(M35:M43) -> 0 | R44: =SUM(R35:R43) -> 0
L45: TOTAL | M45: =M29+M44 -> 0 | R45: =R33+R44 -> 0

Sheet INSURANCE (hidden)
A1: 11
A2: TYPE OF POLICY | B2: NAME OF THE PLAN | C2: POLICY NO | D2: INSURED/ LIFE ASSURED | E2: DOC | F2: LAST PREMIUM DATE | G2: DOM | H2: SUM ASSURED | I2: RIDERS TYPE IF ANY | J2: RIDER SUM ASSURED | K2: MODE PREMIUM AMT | L2: MODE OF PREMIUM(IF YRLY=1, HLY =2, QLY=4 & MLY=12) | M2: ANNUALISED PREMIUM | N2: CURRENT VALUE/ SURRENDER VALUE | O2: ESTIMATED MATURITY VALUE | P2: ALLOCATED GOAL/PURPOSE | Q2: REMARKS IF ANY
A3: PURE RISK COVER POLICIES
A4: =+INPUT!B151 -> Mediclaim 1 | H4: =+INPUT!G151 -> 0 | K4: =+INPUT!H151 -> 0 | L4: =+INPUT!J151 -> 0 | M4: =K4*L4 -> 0
A5: =+INPUT!B152 -> Mediclaim 2 | H5: =+INPUT!G152 -> 0 | K5: =+INPUT!H152 -> 0 | L5: =+INPUT!J152 -> 0 | M5: 0
A6: =+INPUT!B153 -> Top Up Mediclaim Policy | H6: =+INPUT!G153 -> 0 | K6: =+INPUT!H153 -> 0 | L6: =+INPUT!J153 -> 0 | M6: 0
A7: =+INPUT!B154 -> Critical Illness Policy | H7: =+INPUT!G154 -> 0 | K7: =+INPUT!H154 -> 0 | L7: =+INPUT!J154 -> 0 | M7: 0
A8: =+INPUT!B155 -> Hospital Cash Benefit Policy | H8: =+INPUT!G155 -> 0 | K8: =+INPUT!H155 -> 0 | L8: =+INPUT!J155 -> 0 | M8: 0
A9: =+INPUT!B156 -> Specific Illness Policy | H9: =+INPUT!G156 -> 0 | K9: =+INPUT!H156 -> 0 | L9: =+INPUT!J156 -> 0 | M9: 0
A10: =+INPUT!B157 -> Personal Accident Policy | H10: =+INPUT!G157 -> 0 | K10: =+INPUT!H157 -> 0 | L10: =+INPUT!J157 -> 0 | M10: 0
A11: =+INPUT!B158 -> Term Insurance | H11: =+INPUT!G158 -> 0 | K11: =+INPUT!H158 -> 0 | L11: =+INPUT!J158 -> 0 | M11: 0
A12: =+INPUT!B159 -> Parents health insurance | H12: =+INPUT!G159 -> 0 | K12: =+INPUT!H159 -> 0 | L12: =+INPUT!J159 -> 0 | M12: 0
A13: TOTAL | M13: =SUM(M4:M12) -> 0
A14: 12
A15: INVESTMENT CUM INSURANCE PLANS
A16: =+INPUT!B164 -> 0 | H16: =+INPUT!G164 -> 0 | K16: =+INPUT!H164 -> 0 | L16: =+INPUT!J164 -> 1 | M16: =K16*L16 -> 0 | T16: 15 YRS | U16: 1.5 TIMES OF SA
A17: =+INPUT!B165 -> 0 | H17: =+INPUT!G165 -> 0 | K17: =+INPUT!H165 -> 0 | L17: =+INPUT!J165 -> 0 | M17: =K17*L17 -> 0 | T17: 20 YRS | U17: 2 TIMES OF SA
A18: =+INPUT!B166 -> 0 | H18: =+INPUT!G166 -> 0 | K18: =+INPUT!H166 -> 0 | L18: =+INPUT!J166 -> 0 | M18: 0 | T18: 25 YEARS | U18: 2.5 TIMES OF SA
A19: =+INPUT!B167 -> 0 | H19: =+INPUT!G167 -> 0 | K19: =+INPUT!H167 -> 0 | L19: =+INPUT!J167 -> 0 | M19: 0 | T19: 30 YEARS | U19: 3 TIMES OF SA
A20: =+INPUT!B168 -> 0 | H20: =+INPUT!G168 -> 0 | K20: =+INPUT!H168 -> 0 | L20: =+INPUT!J168 -> 0 | M20: 0
A21: =+INPUT!B169 -> 0 | H21: =+INPUT!G169 -> 0 | K21: =+INPUT!H169 -> 0 | L21: =+INPUT!J169 -> 0 | M21: 0
A22: =+INPUT!B170 -> 0 | H22: =+INPUT!G170 -> 0 | K22: =+INPUT!H170 -> 0 | L22: =+INPUT!J170 -> 0 | M22: 0
A23: =+INPUT!B171 -> 0 | H23: =+INPUT!G171 -> 0 | K23: =+INPUT!H171 -> 0 | L23: =+INPUT!J171 -> 0 | M23: 0
A24: =+INPUT!B172 -> 0 | H24: =+INPUT!G172 -> 0 | K24: =+INPUT!H172 -> 0 | L24: =+INPUT!J172 -> 0 | M24: 0
A25: =+INPUT!B173 -> 0 | H25: =+INPUT!G173 -> 0 | K25: =+INPUT!H173 -> 0 | L25: =+INPUT!J173 -> 0 | M25: 0
A26: =+INPUT!B174 -> 0 | H26: =+INPUT!G174 -> 0 | K26: =+INPUT!H174 -> 0 | L26: =+INPUT!J174 -> 0 | M26: 0
A27: =+INPUT!B175 -> 0 | H27: =+INPUT!G175 -> 0 | K27: =+INPUT!H175 -> 0 | L27: =+INPUT!J175 -> 0 | M27: 0
A28: =+INPUT!B176 -> 0 | H28: =+INPUT!G176 -> 0 | K28: =+INPUT!H176 -> 0 | L28: =+INPUT!J176 -> 0 | M28: 0
A29: =+INPUT!B177 -> 0 | H29: =+INPUT!G177 -> 0 | K29: =+INPUT!H177 -> 0 | L29: =+INPUT!J177 -> 0 | M29: 0
A30: =+INPUT!B178 -> 0 | H30: =+INPUT!G178 -> 0 | K30: =+INPUT!H178 -> 0 | L30: =+INPUT!J178 -> 0 | M30: 0
A31: =+INPUT!B179 -> 0 | H31: =+INPUT!G179 -> 0 | K31: =+INPUT!H179 -> 0 | L31: =+INPUT!J179 -> 0 | M31: 0
A32: =+INPUT!B180 -> 0 | H32: =+INPUT!G180 -> 0 | K32: =+INPUT!H180 -> 0 | L32: =+INPUT!J180 -> 0 | M32: 0
A33: =+INPUT!B181 -> 0 | H33: =+INPUT!G181 -> 0 | K33: =+INPUT!H181 -> 0 | L33: =+INPUT!J181 -> 0 | M33: 0
A34: =+INPUT!B182 -> 0 | H34: =+INPUT!G182 -> 0 | K34: =+INPUT!H182 -> 0 | L34: =+INPUT!J182 -> 0 | M34: 0
A35: =+INPUT!B183 -> 0 | H35: =+INPUT!G183 -> 0 | K35: =+INPUT!H183 -> 0 | L35: =+INPUT!J183 -> 0 | M35: 0
A36: =+INPUT!B184 -> 0 | H36: =+INPUT!G184 -> 0 | K36: =+INPUT!H184 -> 0 | L36: =+INPUT!J184 -> 0 | M36: 0
A37: =+INPUT!B185 -> 0 | H37: =+INPUT!G185 -> 0 | K37: =+INPUT!H185 -> 0 | L37: =+INPUT!J185 -> 0 | M37: 0
A38: =+INPUT!B186 -> 0 | H38: =+INPUT!G186 -> 0 | K38: =+INPUT!H186 -> 0 | L38: =+INPUT!J186 -> 0 | M38: 0
A39: TOTAL | H39: =SUM(H16:H18) -> 0 | M39: =SUM(M16:M38) -> 0 | N39: =SUM(N16:N38) -> 0 | O39: =SUM(O16:O38) -> 0

Sheet ASSUMPTIONS (hidden)
B1: ASSUMPTIONS
B2: RETIREMENT AGE | C2: 60
B3: LIFE EXPECTANCY | C3: 85
B4: POST RETIRMENT NO OF YRS PENSION REQUIRED | C4: =C3-C2 -> 25
B5: PRE - RETIREMENT INFLN | C5: 0.07
B6: POST - RETIREMENT INFLN | C6: 0.05
B7: EDUCATION INFLATION | C7: 0.07
B8: RETURN ON DEBT | C8: 0.06
B9: RETURN ON EQUITY | C9: 0.12
B10: RETURN ON BALANCE FUND | C10: 0.1
B11: RETURN ON GOLD | C11: 0.08
B12: RETURN ON PROPERTY | C12: 0.08
B13: RETURN ON PPF / PF | C13: 0.07
B14: POST- RETIREMENT RETURN | C14: 0.05
B15: NO OF YRS LEFT FOR RETIREMENT | C15: =C2-DATA!I6 -> -65
B16: IAR PRE - RETIREMNT | C16: =((1+C8)/(1+C5)-1) -> -0.009345794393
B17: IAR POST- RETIREMENT | C17: =((1+C14)/(1+C6)-1) -> 0

Sheet TAX (hidden)
B2: INCOME TAX CALCULATION
B3: FINANCIAL YEAR | C3: 2016-17
C4: HUSBAND | H4: WIFE
C5: MONTHLY | D5: MONTHLY | E5: MONTHLY | F5: YEARLY | H5: MONTHLY | I5: MONTHLY | J5: MONTHLY | K5: YEARLY
B6: PARTICULARS | C6: GROSS | D6: EXEMPTION | E6: TAXABLE | F6: TAXABLE | G6: REMARK | H6: GROSS | I6: EXEMPTION | J6: TAXABLE | K6: TAXABLE | L6: REMARK
B7: BASIC | C7: 0 | E7: =C7-D7 -> 0 | F7: =E7*12 -> 0 | G7: BASIC | H7: 0 | J7: =H7-I7 -> 0 | K7: =J7*12 -> 0
B8: HRA | C8: 0 | D8: =D75/12 -> 0 | E8: =C8-D8 -> 0 | F8: =E8*12 -> 0 | G8: HRA | H8: 0 | I8: =H8 -> 0 | J8: =H8-I8 -> 0 | K8: =J8*12 -> 0
B9: SPECIAL PAY | C9: 0 | E9: 0 | F9: 0 | G9: special pay- pilots | H9: 0 | J9: 0 | K9: 0
B10: CONVEYANCE (car allow) | C10: 0 | E10: 0 | F10: 0 | G10: special pay - pilots adjs | H10: 0 | J10: 0 | K10: 0
B11: CHILDREN EDU ALLOW | C11: 0 | D11: 0 | E11: 0 | F11: 0 | G11: arrs-basic | H11: 0 | J11: 0 | K11: 0
B12: FDA PAYABLE | C12: 0 | E12: 0 | F12: 0 | G12: arrs- HRA | H12: 0 | J12: 0 | K12: 0
B13: PERSONAL ALLOWANCE | C13: 0 | E13: 0 | F13: 0 | G13: ARRS-DA | H13: 0 | J13: 0 | K13: 0
B14: uniform allow | C14: 0 | D14: =C14 -> 0 | E14: 0 | F14: 0 | G14: ARR-CCA | H14: 0 | J14: 0 | K14: 0
B15: DRIVER'S SALARY | C15: 0 | E15: 0 | F15: 0 | G15: ARRS-EDUCATION ALLOW | H15: 0 | I15: 0 | J15: 0 | K15: 0
B16: INSTRUCTOR ALLOWANCE | C16: 0 | E16: 0 | F16: 0 | G16: ARRS-R T ALLOW | H16: 0 | J16: 0 | K16: 0
B17: COMMAND PAY | C17: 0 | E17: 0 | F17: 0 | G17: ARRS - TYPE ALLOW | H17: 0 | J17: 0 | K17: 0
B18: MANAGEMENT PAY | C18: 0 | E18: 0 | F18: 0 | G18: ARRS- LICENSE ALLOW | H18: 0 | J18: 0 | K18: 0
B19: PERIODICALS & JOURNALS A | C19: 0 | E19: 0 | F19: 0 | G19: ARRS- EFFICIENCY BONUS- PF | H19: 0 | J19: 0 | K19: 0
B20: CHILDREN HOSTEL ALLOW | C20: 0 | D20: 0 | E20: 0 | F20: 0 | G20: ARRS- A-320 FAMILY ALLOW | H20: 0 | J20: 0 | K20: 0
B21: INCENTVE PAY | C21: 0 | E21: 0 | F21: 0 | G21: ARRS -TELEPHONE ALLOW | H21: 0 | J21: 0 | K21: 0
B22: FLIGHT DUTY ALLOWANCE | C22: 0 | E22: 0 | F22: 0 | G22: ARRS- COMMAND PAY - PF | H22: 0 | J22: 0 | K22: 0
B23: SERVICE PAY | C23: 0 | E23: 0 | F23: 0 | G23: DA INDEX | H23: 0 | J23: 0 | K23: 0
B24: GROSS TOTAL | C24: =SUM(C7:C23) -> 0 | D24: =SUM(D7:D23) -> 0 | E24: =SUM(E7:E23) -> 0 | F24: 0 | G24: OTHER ALLOW | H24: 0 | J24: 0 | K24: 0
C25: GROSS ANNUAL TAXABLE SALARY | F25: =F24 -> 0 | G25: ARR- OTHER ALLOW | H25: 0 | J25: 0 | K25: 0
A26: LESS | B26: PROFESSIONAL TAX | C26: 0 | F26: =C26*12 -> 0 | G26: ARRS DA | H26: 0 | J26: 0 | K26: 0
F27: =C27*12 -> 0 | G27: ARRS-SPECIAL PAY | H27: 0 | J27: 0 | K27: 0
B28: TRAINER ALLOWINSTRUCTOR | C28: 0 | F28: =C28*12 -> 0 | G28: GROSS | H28: =SUM(H7:H27) -> 0
B29: TOTAL INCOME | F29: =F25-F26-F27-F28 -> 0
H30: GROSS ANNUAL TAXABLE SALARY | K30: =SUM(K7:K27) -> 0
B31: AS PER MARCH-16 SALARY SLIP (GTI) | F31: 0 | K31: 2400
A32: ADD | B32: INCOME FROM HOUSING LOAN (AS PER WORKING NOTE.NO.2) | F32: 0 | K32: =F32 -> 0
B33: TOTAL INCOME | F33: =F31+F32 -> 0
H34: TOTAL INCOME | K34: 0
B35: DEDUCTION UNDER CHAPTER VI A | G35: LESS
B36: SEC 80 C | C36: MONTHLY | D36: YEARLY | H36: AS PER CURRENT SALARY SLIP | K36: 0
B37: LIFE INSURANCE PREMIUM | C37: 0 | D37: 0
B38: PF SELF CONTRIBUTION | C38: 0 | D38: =C38*12 -> 0 | H38: LOSS FROM HOUSE PROPERTY | K38: 0
B39: HSG PRINCIPAL | C39: 0 | D39: 0 | K39: 0
B40: PPF | C40: 0 | D40: =C40*12 -> 0 | H40: GROSS TOTAL INCOME | K40: =K36+K38 -> 0
B41: ULIP | C41: 0 | F41: =SUM(D37:D41) -> 0
E42: TOTAL 80 C | F42: 150000 | J42: TOTAL 80 C | K42: 150000
B43: SEC 80 D
B44: MEDICLAIM
B45: PREMIUM SELF, SPOUSE & DEPENDENT CHILDREN | F45: 0 | G45: FROM MEDICLAIM POLICY | H45: COMPANY | K45: 0
B46: HEALTH CHECK UP EXPS SELF, SPOUSE & KIDS | G46: MEDICLAIM FOR PARENTS | H46: FROM PILOT ASSOCIATION | K46: 0
B47: PREMIUM FOR PARENTS
B48: HEALTH CHECK UP EXPS FOR PARENTS
E49: TOTAL 80 D | F49: =SUM(F45:F48) -> 0 | J49: TOTAL 80 D | K49: =SUM(K45:K48) -> 0
A52: LESS | B52: HSG LOAN INTEREST U/SEC 24 (b)
B53: SOP
B54: LOP | C54: 0 | F54: 0
B55: LOP 2
C56: TOTAL LOAN INTEREST U/SEC 24 (b) | F56: =SUM(F53:F55) -> 0
D57: TAXABLE INCOME | F57: =F33-F42-F49 -> -150000 | I57: TAXABLE INCOME | K57: =K40-K42-K49 -> -150000
C58: AMOUNT | D58: TAX RATES | E58: TAX AMOUNT | H58: AMOUNT | I58: TAX RATES | J58: TAX AMOUNT
B59: UPTO 250000 | C59: 250000 | D59: 0 | E59: =C59*D59 -> 0 | H59: 250000 | I59: 0 | J59: =H59*I59 -> 0
B60: B/W 250001 TO 500000 | C60: 250000 | D60: 0.1 | E60: =C60*D60 -> 25000 | H60: 250000 | I60: 0.1 | J60: =H60*I60 -> 25000
B61: B/W 500001 TO1000000 | C61: 500000 | D61: 0.2 | E61: =C61*D61 -> 100000 | H61: 500000 | I61: 0.2 | J61: =H61*I61 -> 100000
B62: 1000000& ABOVE | C62: 0 | D62: 0.3 | E62: =C62*D62 -> 0 | H62: 0 | I62: 0.3 | J62: =H62*I62 -> 0
D63: TOTAL NET TAX | F63: =SUM(E59:E62) -> 125000 | I63: TOTAL NET TAX | K63: =SUM(J59:J62) -> 125000
A64: ADD | B64: SURCHARGE @12% | D64: 0
F65: =F63+F64 -> 125000
B66: ADD EDUCATION CESS | D66: 0.03 | F66: =F65*D66 -> 3750 | I66: 0.03 | K66: =K63*I66 -> 3750
D68: TOTAL TAX LIABLITY | F68: =F63+F66 -> 128750 | I68: TOTAL TAX LIABLITY | K68: =K63+K66 -> 128750
D69: TDS DEDUCTED AMOUNT | I69: TDS DEDUCTED AMOUNT
D70: ADVANCE TAX PAID AMT | I70: ADVANCE TAX PAID AMT
B72: CALCULATION OF EXEMPT HRA
B73: LEAST OF THE 3 EXEMPT
A74: 1 | B74: ACTUAL HRA RECEIVED | D74: =C8*12 -> 0
A75: 2 | B75: 50% OF BASIC | D75: =C7*0.5*12 -> 0
A76: 3 | B76: RENT PAID | C76: =DATA!#REF!*12 -> 
A77: LESS | B77: 10% OF BASIC | C77: =C7*0.1*12 -> 0 | D77: =C76-C77 -> 
B79: CALCULATION OF INCOME /LOSS FROM HOUSE PROPERTY
B81: GROSS ANNUAL VALUE | C81: 0 | D81: 0
A82: LESS | B82: MUNCIPAL TAXES PAID | C82: 0 | D82: 0
B83: NET ANNUAL VALUE | C83: =D83/2 -> 0 | D83: =D81-D82 -> 0
A84: LESS | B84: 1. STANDARD DEDUCTION U/SEC. 24(a) | C84: =C83*0.3 -> 0 | D84: =D83*0.3 -> 0
B85: 2. HOUSING LOAN INTEREST (SEC. 24(b) | C85: 0 | D85: 0
B86: INCOME FROM HOUSE PROPERTY | C86: =C83-(C84+C85) -> 0 | D86: =D83-(D84+D85) -> 0

Sheet AllCalc (hidden)
A1: One Stop for All Financial Calculators
A2: Future Value of One Time Investment | F2: One Time Investment Required For Future Value | K2: SIP Calculator | P2: SIP Required for Future Value
A4: One Time Investment | D4: 100000 | F4: Target Future Value | I4: 1000000 | K4: SIP Amount (Per Month) | N4: 19502 | P4: Target Future Value | S4: 13200000
A5: Investment Period (Yrs) | D5: 10 | F5: Investment Period (Yrs) | I5: 5 | K5: SIP Period (Yrs) | N5: 15 | P5: SIP Period (Yrs) | S5: 15
A6: Growth Rate Assumed | D6: 0.1 | F6: Growth Rate Assumed | I6: 0.15 | K6: Growth Rate Assumed | N6: 0.15 | P6: Growth Rate Assumed | S6: 0.15
A7: Future Value | D7: =FV(D6,D5,,-D4) -> 259374.246 | F7: One Time Investment Required | I7: =PV(I6,I5,,-I4) -> 497176.7353 | K7: Future Value of SIP | N7: =FV(N6/12,N5*12,-N4,,1) -> 13200184.06 | P7: SIP Required (Per Month) | S7: =PMT(S15/12,S5*12,,-S4,1) -> 26160.57841
A9: SWP Calculator | F9: Lumpsum Investment Required for Target SWP Amount | K9: Future Value of Limited Period SIP | P9: Limited Period SIP For Future Goal
A12: Lumpsum Investment | D12: 5000000 | F12: SWP Amount Needed (Per Month ) | I12: 20000 | K12: SIP Amount (Per Month) | N12: 10000 | P12: Target Amount | S12: 10000000
A13: SWP Period (Yrs) | D13: 10 | F13: SWP Period (Yrs) | I13: 20 | K13: Limited SIP Period (Yrs) | N13: 15 | P13: Limited SIP Period (Yrs) | S13: 15
A14: Growth Rate Assumed | D14: 0.15 | F14: Growth Rate Assumed | I14: 0.07 | K14: Deferment Period (Yrs) | N14: 10 | P14: Deferment Period (Yrs) | S14: 5
A15: Balance Required at the End | D15: 0 | F15: Balance Required at the End | I15: 2500000 | K15: Growth Rate Assumed | N15: 0.15 | P15: Growth Rate Assumed | S15: 0.12
A16: SWP Amount Per Month | D16: =PMT(D14/12,D13*12,-D12,D15) -> 80667.47854 | F16: Investment Required | I16: =-PV(I14/12,I13*12,I12,I15,0) -> 3198655.244 | K16: Future Value | N16: =-FV(N15,N14,,FV(N29,N13*12,-N12,,1)) -> 7282003.924 | P16: SIP Required Per Month | S16: =PMT(S15/12,S13*12,,PV(S15,S14,,S12,0),1) -> 11245.61724
A18: Combo of Onetime Investment & SIP for Future Value | F18: Onetime Required (SIP is known) to Achieve Target Future Value | K18: SIP Required (Onetime is known) to Achieve Target Future Value
A21: SIP Amount (Per Month) | D21: 10000 | F21: Target Future Value | I21: 30000000 | K21: Target Future Value | N21: 30000000
A22: Growth Rate Assumed | D22: 0.15 | F22: Investment Period (Yrs) | I22: 20 | K22: Investment Period (Yrs) | N22: 20
A23: Onetime Investment | D23: 500000 | F23: SIP Amount (Per Month) | I23: 13287 | K23: Lumpsum Investment | N23: 500000
A24: Growth Rate Assumed | D24: 0.12 | F24: Expected Return (SIP) | I24: 0.15 | K24: Expected Return (Lumpsum) | N24: 0.15
A25: Investment Period (Yrs) | D25: 20 | F25: Expected Return (Onetime) | I25: 0.15 | K25: Expected Return (SIP) | N25: 0
A26: Future Value | D26: =FV(D29,D25*12,-D21,,1)+FV(D24,D25,,-D23) -> 7223146.547 | F26: Onetime Required | I26: =-PV(I25,I22,,(I21-FV(I29,I22*12,-I23,,1))) -> 1638166.911 | K26: SIP Required (Per Month) | N26: =-PMT(N24/12,N22*12,-N23,N21,1) -> 13286.84135

Sheet SURPLUS & NETWORTH (hidden)
B1: CASH FLOWS
B2: TOTAL YEARLY INFLOWS | C2: =DATA!F77 -> 5400000 | D2: TOTAL MONTHLY INFLOWS | E2: =C2/12 -> 450000
B3: FAMILY STANDARD OF LIVING EXPENSES | C3: =DATA!E47 -> 940800 | D3: FAMILY STANDARD OF LIVING EXPENSES | E3: =C3/12 -> 78400
B4: PURE INSURANCE PREMIUMS | C4: =INSURANCE!M13 -> 0 | D4: PURE INSURANCE PREMIUMS | E4: 0
B5: REGULAR SAVINGS & INVESTMENTS | C5: ='EXISTING ASSETS & INVESTMENTS'!M29+INSURANCE!M39 -> 0 | D5: REGULAR SAVINGS & INVESTMENTS | E5: 0
B6: LOAN EMI DETAILS | C6: =DATA!D59*12 -> 1013316 | D6: =DATA!B50 -> LOAN DETAILS | E6: 84443
B7: TOTAL YEARLY OUTFLOWS | C7: =SUM(C3:C6) -> 1954116 | D7: TOTAL MONTHLY OUTFLOWS | E7: =SUM(E3:E6) -> 162843
B8: YEARLY SURPLUS AMOUNT | C8: =C2-C7 -> 3445884 | D8: MONTHLY SURPLUS AMOUNT | E8: =E2-E7 -> 287157
B10: NETWORTH STATEMENT
B11: ASSETS | C11: AMT | D11: LIABLITIES | E11: AMT
B12: FINANCIAL ASSETS | C12: ='EXISTING ASSETS & INVESTMENTS'!R29 -> 0 | D12: LOAN LIABILITIES | E12: =DATA!E59 -> 8205617
B13: NON FINANCIAL ASSETS | C13: ='EXISTING ASSETS & INVESTMENTS'!R44 -> 0 | D13: SOP HOUSE | E13: ='EXISTING ASSETS & INVESTMENTS'!R35 -> 0
B14: CASH VALUE OF INSURANCE OF INSURANCE POLICIES | C14: =INSURANCE!N39 -> 0 | G14: Networth
B15: JEWELLERY- ORNAMENTS | C15: ='EXISTING ASSETS & INVESTMENTS'!R36 -> 0 | D15: CAR | E15: ='EXISTING ASSETS & INVESTMENTS'!R37 -> 0 | G15: TOTAL ASSETS | H15: =C16 -> 0
B16: TOTAL ASSETS | C16: =SUM(C12:C15) -> 0 | D16: TOTAL LIABILITIES | E16: =SUM(E12:E15) -> 8205617 | G16: TOTAL LIABILITIES | H16: =E16 -> 8205617
B17: NETWORTH VALUE | E17: =C16-E16 -> -8205617 | G17: NETWORTH | H17: =H15-H16 -> -8205617

Sheet FINANCIAL RATIOS ANALYSIS (hidden)
A1: FINANCIAL RATIOS ANALYSIS
A2: S.N. | B2: Financial Ratios | C2: Particulars | D2: Amount | E2: Actual | F2: Range
A3: I) CONSUMPTION EXPENSES RATIO | C3: HOW MUCH DO YOU SPEND TO MAINTAIN YOUR STANDARD OF LIVING EXPENSES OUT OF YOUR TOTAL INCOME | F3: < 30% - Optimum
B4: TOTAL ANNUAL EXPS | D4: =DATA!E47+INSURANCE!M13 -> 940800 | E4: =D4/D5 -> 0.1742222222 | F4: 30% - 50% - Moderate
B5: TOTAL YEARLY INFLOWS | D5: ='SURPLUS & NETWORTH'!C2 -> 5400000 | F5: > 50% - Adverse
A6: I) BASIC LIQUIDITY RATIO | C6: This ratio indicates one's ability to meet mandatory monthly expenses & other emergency needs | F6: < 3 Adverse
F7: 3- <5 Moderate
B8: Total Liquid Assets | D8: =SUM('EXISTING ASSETS & INVESTMENTS'!R4:R8) -> 0 | E8: =D8/D9 -> 0 | F8: 5-6 Optimum
B9: Total Monthly Outfolws | D9: ='SURPLUS & NETWORTH'!E3+'SURPLUS & NETWORTH'!E5+'SURPLUS & NETWORTH'!E6+'SURPLUS & NETWORTH'!E4 -> 162843 | F9: > 6 Less Optimum
A10: II) EXPANDED LIQUIDITY RATIO | C10: This ratio is required during emergency situations when it may not be possible to convert one's assets into cash | F10: < 12 Adverse
B11: Total Financial Assets | D11: ='SURPLUS & NETWORTH'!C12 -> 0 | E11: =D11/D12 -> 0 | F11: 12 - 24 Moderate
B12: Total Monthly Outflows | D12: =D9 -> 162843 | F12: > 24 - Optimum
A13: III) SAVINGS RATIO | C13: This ratio calculates the proportion of income an individual sets aside for savings out of the total income | F13: < 10% Adverse
B14: REGULAR YEARLY SAVINGS | D14: ='EXISTING ASSETS & INVESTMENTS'!M29 -> 0 | E14: =D14/D15 -> 0 | F14: 10% - 25% - Moderate
B15: TOTAL YEARLY INFLOWS | D15: =DATA!F77 -> 5400000
F16: > 25% - Optimum
A17: IV) DEBT ASSET RATIO | C17: This ratio calculates an individual's ability to pay liabilities out of assets. | F17: < 30% - Optimum
B18: TOTAL LOAN OUTSTANDING | D18: =DATA!E59 -> 8205617 | E18: =D18/D19 ->  | F18: 30% - 50% - Moderate
B19: TOTAL ASSETS | D19: ='SURPLUS & NETWORTH'!C16 -> 0 | F19: > 50% - Adverse
A20: V) SOLVENCY RATIO | C20: This ratio is used to measure the potential of long-term solvency | F20: < 30% - Adverse
B21: Net Worth | D21: ='SURPLUS & NETWORTH'!E17 -> -8205617 | E21: =D21/D22 ->  | F21: 30% - 50% - Moderate
B22: Total Assets | D22: =D19 -> 0 | F22: > 50% - Optimum
A23: VI) DEBT SERVICE RATIO | C23: These ratios are used to measure an individual's ability to make debt repayments out of Net Take Home | F23: < 25% - Optimum
B24: Annual Total Loan Emi | D24: =DATA!D59*12 -> 1013316 | E24: =D24/D25 -> 0.1876511111 | F24: 25% - 45% - Moderate
B25: TOTAL YEARLY INFLOWS | D25: ='SURPLUS & NETWORTH'!C2 -> 5400000 | F25: >45% - Adverse
A26: VII) FINANCIAL ASSET RATIO | C26: This ratio is used to determine an individual's invested assets (excluding self consumption) out of total Net Worth | F26: < 30% - Adverse
B27: FINANCIAL ASSETS | D27: ='SURPLUS & NETWORTH'!C12 -> 0 | E27: =D27/D28 ->  | F27: 30% - 50% - Moderate
B28: Total Assets | D28: ='SURPLUS & NETWORTH'!C16 -> 0 | F28: > 50% - Optimum
A29: VII) INSURANCE COVERAGE RATIO | C29: HOW MUCH PERCENTAGE OF INSURANCE YOUR ALREADY COVERED THROUGH YOUR EXISTING INSURANCE & ASSETS | F29: < 75% - Adverse
A30: EXISTING INSURANCE AMT | D30: =INSURANCE!H11+INSURANCE!H39 -> 0 | E30: =D30/D31 -> 0 | F30: 75% TO 100% - Moderate
A31: TOTAL INSURANCE RQUIRED AMT | D31: ='RISK PLANNING'!D26 -> 23885617 | F31: > 100% - Optimum

Sheet EMERGENCY FUND (hidden)
A1: EMERGENCY PLANNING FOR JOB LOSS / BUSINESS LOSS /CASH CRUNCH
A2: TOTAL AVERAGE MONTHLY OUTFLOW | B2: ='SURPLUS & NETWORTH'!E3+'SURPLUS & NETWORTH'!E5+'SURPLUS & NETWORTH'!E6 -> 162843 | D2: EXISITING SOURCES | E2: AMT
A3: NO OF MONTHS TO BE PLANNED | B3: 9 | D3: Bank 1 - Savings balance | E3: 0
A4: TOTAL EMERGENCY FUND REQUIRED | B4: =B2*B3 -> 1465587 | D4: Fixed Deposit - Bank ….. | E4: 400000
A5: EXISTING PROVISION | B5: =E5 -> 400000 | D5: TOTAL EXISTING AMT | E5: =SUM(E1:E4) -> 400000
A6: GAP AMOUNT TO BE FILLED | B6: =B4-B5 -> 1065587 | D6: WHERE TO INVEST | E6: AMT
A7: My recommendation : | D7: IN SAVING A/C 1 MONTH PROVISION | E7: =B2 -> 162843
D8: IN BANK FD/ LIQUID FUND | E8: =B4-B2 -> 1302744
D9: TOTAL INVESTMENT | E9: =SUM(E7:E8) -> 1465587

Sheet Ratio Dashboard (hidden)
D5: GOOD JOB
H6: PRESENTED BY:
D7: BE ALERT
H8: Mr. Shailendra Rahigude
D9: NEED IMMEDIATE ACTION

Sheet RISK PLANNING (hidden)
B4: PLANNING FOR UNCERTAIN EVENTS / RISK PLANNING
C5: EVENTS TO BE PLANNED | D5: REQUIRED | F5: EXISTING | G5: EXISTING SOURCES / | H5: GAP AMT TO
D6: AMOUNT | F6: COVER | G6: PLANS | H6: BE FILLED
B7: A | C7: MAJOR HEALTH PROBLEMS
B8: 1 | C8: BASIC HEALTH PLAN | D8: 1000000 | F8: =DATA!C93+INSURANCE!H4+INSURANCE!H5 -> 0 | G8: =INSURANCE!B5 -> 0 | H8: =D8-F8 -> 1000000
B9: 2 | C9: TOP UP PLAN | D9: 2000000 | F9: =INSURANCE!H6 -> 0 | G9: =INSURANCE!B6 -> 0 | H9: =D9-F9 -> 2000000
B10: 3 | C10: CRITICAL ILLNESS | D10: 1000000 | F10: =INSURANCE!H7 -> 0 | G10: =INSURANCE!B7 -> 0 | H10: 1000000
B11: 4 | C11: HOSPITAL CASH BENEFIT PLAN | D11: 3000 | F11: =INSURANCE!H8 -> 0 | G11: =INSURANCE!B8 -> 0 | H11: 3000
B12: 5 | C12: PARENTS HEALTH INSURANCE | D12: 500000 | F12: =INSURANCE!H12 -> 0 | G12: =INSURANCE!B12 -> 0 | H12: 500000
C13: TOTAL | D13: =SUM(D8:D12) -> 4503000 | F13: =SUM(F8:F12) -> 0 | H13: =SUM(H8:H12) -> 4503000
B14: B | C14: ACCIDENTAL DISABLITY/ DEATH
B15: 1 | C15: TO MAINTAIN SAME STANDARD OF LIVING | D15: =DATA!E47/ASSUMPTIONS!C8 -> 15680000 | F15: ='SURPLUS & NETWORTH'!C12 -> 0 | G15: FINANCIAL ASSETS
B16: 2 | C16: REPAY ALL THE LOAN LIABILITIES | D16: =DATA!E59 -> 8205617 | F16: ='EXISTING ASSETS & INVESTMENTS'!R44-('EXISTING ASSETS & INVESTMENTS'!R35+'EXISTING ASSETS & INVESTMENTS'!R36+'EXISTING ASSETS & INVESTMENTS'!R37) -> 0 | G16: NON FINANCIAL ASSETS EXCEPT SOP HOUSE, CAR, JEWELLERY
B17: 3 | C17: TO COVER CHILDREN EDUCATION & MARRIAGE | D17: ='GOALS FOR CHILDREN'!G16 -> 0 | F17: =INSURANCE!H10 -> 0 | G17: ACCIDENTAL POLICY IF ANY
B18: 4 | C18: TO FULFILL GOALS | D18: =DATA!F89 -> 0 | G18: ANY OTHER ASSETS
C19: TOTAL | D19: =SUM(D15:D18) -> 23885617 | F19: =SUM(F15:F18) -> 0 | H19: =D19-F19 -> 23885617
B21: C | C21: LIFE COVER (NEED BASED METHOD)
B22: 1 | C22: TO MAINTAIN SAME STANDARD OF LIVING | D22: =D15 -> 15680000 | F22: =F15 -> 0 | G22: FINANCIAL ASSETS
B23: 2 | C23: REPAY ALL THE LOAN LIABILITIES | D23: =D16 -> 8205617 | F23: =F16 -> 0 | G23: NON FINANCIAL ASSETS EXCEPT SOP HOUSE, CAR, JEWELLERY | I23: =F23+F22 -> 0
B24: 3 | C24: TO COVER CHILDREN EDUCATION & MARRIAGE | D24: =D17 -> 0 | F24: =INSURANCE!H11 -> 0 | G24: Term Plan
B25: 4 | C25: TO FULFILL GOALS | D25: =D18 -> 0 | F25: =INSURANCE!H39 -> 0 | G25: Endowment & ULIP Plan Death Benefit amount | I25: =F24+F25 -> 0
C26: TOTAL | D26: =SUM(D22:D25) -> 23885617 | F26: =SUM(F22:F25) -> 0 | H26: =D26-F26 -> 23885617
B28: D | C28: HOUSE BREAKING & BURGLARY INSURANCE
B30: E | C30: VEHICLE INSURANCE
C32: Planner Note: | D32: 1). Considering medical inflation in India, Existing health cover of Rs 5 Lakh is not sufficient. Hence it is recommended to go for Rs 10 Lakh base cover as well as Rs 20 lakh Top Up cover. 2). You do not have sufficient financial assets to cover expenses in case of liability. Hence it is recommended to have PA policy with 1.5 Cr cover

Sheet Risk Man. Dashboard (hidden)

Sheet RETIREMENT PLANNING (hidden)
A1: RETIREMENT ASSESSMENT | G1: EXISTING MONTHLY INCOME/ PENSION POST RETIREMENT
A2: PRE- RETIREMENT STAGE | D2: POST - RETIREMENT STAGE | G2: SOURCE | H2: PRESENT MLY Rental INCOME | I2: PRESENT YEARLY INCOME | J2: GROWTH RATE,IF ANY | K2: YEARLY FUTURE VALUE
A3: PRE - RETIREMENT MONTHLY EXPS | B3: =DATA!C47 -> 78400 | D3: YEARLY GAP INCOME REQUIRED | E3: =B17*12 -> 516.8376435 | G3: RENTAL INCOME | H3: =DATA!E67 -> 0 | I3: =H3*12 -> 0 | J3: 0.05 | K3: =FV(J3,$B$13,0,-I3,0) -> 0
G4: PENSION INCOME | I4: =H4*12 -> 0 | J4: 0.05 | K4: =FV(J4,$B$13,0,-I4) -> 0
A5: POST RETIREMENT MLY EXPENSES | B5: =DATA!H45 -> 62720 | D5: NO OF YEARS PENSION REQUIRED | E5: ='B I S'!G53 -> 0 | G5: DIVIDEND INCOME | H5: =DATA!E72 -> 0 | I5: 0 | J5: 0.05 | K5: 0
G6: ROYALTY INCOME | I6: 0 | J6: 0.05 | K6: 0
A7: PRE - RETIREMENT INFLATION RATE | B7: 0.06 | D7: POST RETIREMENT RETURN ON INVESTMENTS | E7: =ASSUMPTIONS!C17 -> 0 | I7: 0 | J7: 0.05 | K7: 0
I8: 0 | J8: 0.05 | K8: 0
A9: CURRENT AGE | B9: =DATA!I6 -> 125 | D9: CORPUS REQUIRED ON RETIREMENT YEAR | E9: =PV(E7/12,E5*12,-B17,0,1) -> 0 | I9: 0 | J9: 0.05 | K9: 0
I10: 0 | J10: 0.05 | K10: 0
A11: RETIREMENT AGE | B11: ='B I S'!G52 -> 0 | C11: LESS | D11: FUTURE VALUE OF EXISTING INVESTMENTS | E11: =H47 -> 0 | F11: REFER TO H47 | I11: 0 | J11: 0.05 | K11: 0
I12: 0 | J12: 0.05 | K12: 0
A13: NO OF YEARS LEFT FOR RETIREMNT | B13: =B11-B9 -> -125 | D13: GAP CORPUS TO BE ACCUMULATED BY RETIREMENT | E13: =E9-E11 -> 0 | I13: 0 | J13: 0.05 | K13: 0
I14: 0 | J14: 0.05 | K14: 0
A15: MLY EXPENSES ON RETIREMENT YEAR | B15: =FV('RETIREMENT PLANNING'!B7,B13,0,-B5) -> 43.06980362 | D15: PRE - RETIREMENT RETURN ON INVESTMENTS | E15: 0.12 | I15: 0 | J15: 0.05 | K15: 0
A16: EXISTING PENSION / POST RETIRMENT INCOME RECEIVABLE | B16: =K18 -> 0 | C16: REFER TO K18 | I16: 0 | J16: 0.05 | K16: 0
A17: GAP MONTHLY PENSION/ INCOME REQUIRED | B17: =B15-B16 -> 43.06980362 | D17: NEW MLY INVESTMENTS TO FILL GAP OF RETIREMENT | E17: =PMT(E15/12,B13*12,0,-E13,1) -> 0 | G17: TOTAL | H17: =I17/12 -> 0 | I17: =SUM(I3:I16) -> 0 | J17: TOTAL | K17: =SUM(K3:K16) -> 0
A18: Planner Note: | B18: Planner Note: | J18: MLY AVERAGE | K18: =K17/12 -> 0
A24: RETIRMENT YEAR | B24: =DATA!G3+'RETIREMENT PLANNING'!B13 -> 1899
A25: FUTURE VALUE OF EXISTING ASSETS/INVESTMENTS ALLOCATED TO RETIREMENT NEEDS
A26: NAME OF SCHEME/INVESTMENT | B26: CURRENT VALUE/ REINVESTED VALUE | C26: FUTURE REGURLAR INVESTMENTS AMT | D26: ROR | E26: Investment Period | F26: Mode Yearly or current value = 1, HALF yearly = 2, Quarterly = 4, Monthly = 12 | G26: Recommendation | H26: FUTURE VALUE ON RETIREMENT
A27: ='EXISTING ASSETS & INVESTMENTS'!B9 -> Employee Provident fund (EPF) | B27: ='EXISTING ASSETS & INVESTMENTS'!R9 -> 0 | C27: ='EXISTING ASSETS & INVESTMENTS'!K9*2*12 -> 0 | D27: 0.08 | E27: =B$13 -> -125 | F27: 1 | H27: =FV(D27/F27,E27*F27,-C27,-B27,1) -> 0
A28: ='EXISTING ASSETS & INVESTMENTS'!B10 -> Public Provident Fund (PPF) | B28: ='EXISTING ASSETS & INVESTMENTS'!R10 -> 0 | C28: ='EXISTING ASSETS & INVESTMENTS'!M10 -> 0 | D28: 0.07 | E28: -125 | F28: 1 | H28: =FV(D28/F28,E28*F28,-C28,-B28,1) -> 0
D29: 0.1 | E29: -125 | F29: 1 | H29: =FV(D29/F29,E29*F29,-C29,-B29,1) -> 0
D30: 0.07 | E30: -125 | F30: 1 | H30: =FV(D30/F30,E30*F30,-C30,-B30,1) -> 0
D31: 0.08 | E31: -125 | F31: 1 | H31: 0
D32: 0.08 | E32: -125 | F32: 1 | H32: 0
D33: 0.08 | E33: -125 | F33: 1 | H33: 0
D34: 0.08 | E34: -125 | F34: 1 | H34: 0
D35: 0.08 | E35: -125 | F35: 1 | H35: 0
D36: 0.08 | E36: -125 | F36: 1 | H36: 0
D37: 0.08 | E37: -125 | F37: 1 | H37: 0
D38: 0.08 | E38: -125 | F38: 1 | H38: 0
D39: 0.08 | E39: -125 | F39: 1 | H39: 0
D40: 0.08 | E40: -125 | F40: 1 | H40: 0
D41: 0.08 | E41: -125 | F41: 1 | H41: 0
D42: 0.08 | E42: -125 | F42: 1 | H42: 0
D43: 0.08 | E43: -125 | F43: 1 | H43: 0
D44: 0.08 | E44: -125 | F44: 1 | H44: 0
D45: 0.08 | E45: -125 | F45: 1 | H45: 0
D46: 0.08 | E46: -125 | F46: 1 | H46: 0
G47: TOTAL EXISTING RETIREMENT CORPUS | H47: =SUM(H27:H46) -> 0

Sheet INVESTMENTS (hidden)
A2: INVESTMENT ALLOCATION
A3: SR.NO | B3: NAME OF THE SCHEME/ INVESTMENT / POLICY | C3: PURPOSE OF INVESTMENT/ | D3: TYPE OF | E3: EXISTING/ | F3: INVESTED/ | G3: INVESTED/ | H3: GOAL / NEED YEAR | I3: INESTMENT | J3: FINAL MATURITY | K3: TAX BENEFITS | L3: WHEN TO WITHDRAW | M3: LUMPSUM/ | N3: REGULAR | O3: MODE OF | P3: DATE OF
C4: INVESTMENT ALLOCATED TO | D4: INVESTMENT | E4: NEW | F4: REINVEST YEAR | G4: REINVESTED VALUE | H4: FINAL MATURITY YR | I4: TENURE | J4: VALUE | M4: REGULAR | N4: AMOUNT | O4: INVESTEMNT | P4: INVESTMENT

Sheet EDUCATION & MARRIAGE (hidden)
A1: YEAR | B1: COURSE / CLASS/ STANDARD | C1: ='GOALS FOR CHILDREN'!C3 -> 0 | D1: ='GOALS FOR CHILDREN'!D3 -> 0 | E1: ='GOALS FOR CHILDREN'!E3 -> 0 | F1: NO OF YEARS LEFT | G1: PRESENT VALUE REQUIRED TODAY | H1: INFLATION RATE | I1: FUTURE VALUE REQUIRED | J1: FUTURE VALUE OF EXISTING ASSETS/INVESTMENTS ALLOCATED FOR EDUCATION GOAL | R1: GAP AMT TO BE ACCUMULATED | S1: NEW ROR | T1: NEW INVESTMNTS REQUIRED TO FILL THE GAP
J2: NAME OF SCHEME/INVESTMENT | K2: CURRENT VALUE REINVESTED VALUE | L2: FUTURE REGURLAR INVESTMENTS AMT | M2: ROR | N2: Investment Period | O2: Mode Yearly or current value = 1, HALF yearly = 2, Quarterly = 4, Monthly = 12 | P2: Remarks | Q2: FUTURE VALUE OF EXISTING PROVISION | S2: 0.12 | T2: MLY INVESTMENTS REQUIRED | U2: YEARLY INVESTMENTS REQUIRED | V2: LUMSUM INVESTMENTS REQUIRED
A3: =+INPUT!H93 -> 0 | B3: ='GOALS FOR CHILDREN'!B4 -> Mayuri Graduation | C3: =+INPUT!F93 -> 0 | F3: =IF(+INPUT!J93>0,+INPUT!J93,0) -> 0 | G3: ='GOALS FOR CHILDREN'!G4 -> 0 | H3: =+ASSUMPTIONS!$C$7 -> 0.07 | I3: =G3*(1+H3)^(F3) -> 0 | J3: Mutual Funds ( Attach separate sheet if no. of schemes are more) Lumsum :- 600000 SIP/RD :- 0 | K3: 600000 | L3: 0 | M3: 0.12 | N3: =F3 -> 0 | O3: 12 | Q3: =FV(M3/O3,N3*O3,-L3,-K3,1) -> 600000 | R3: =I3-Q3 -> -600000 | S3: 0.12 | T3: =PMT(S3/12,F3*12,0,-R3,1) ->  | U3: =PMT(S3,F3,0,-R3,0) ->  | V3: =PV(S3,F3,0,-R3,0) -> -600000
A4: =+INPUT!H94 -> 0 | B4: ='GOALS FOR CHILDREN'!B5 -> Mayuri Post Graduation | C4: =+INPUT!F94 -> 0 | F4: =IF(+INPUT!J94>0,+INPUT!J94,0) -> 0 | G4: ='GOALS FOR CHILDREN'!G5 -> 0 | H4: =+ASSUMPTIONS!$C$7 -> 0.07 | I4: =G4*(1+H4)^(F4) -> 0 | M4: 0.12 | N4: 0 | O4: 12 | Q4: =FV(M4/O4,N4*O4,-L4,-K4,1) -> 0 | R4: 0 | S4: 0.12 | V4: 0
A5: =+INPUT!H95 -> 0 | B5: ='GOALS FOR CHILDREN'!B6 -> Heramb Graduation | C5: =+INPUT!F95 -> 0 | F5: =IF(+INPUT!J95>0,+INPUT!J95,0) -> 0 | G5: ='GOALS FOR CHILDREN'!G6 -> 0 | H5: =+ASSUMPTIONS!$C$7 -> 0.07 | I5: 0 | M5: 0.07 | N5: 0 | O5: 12 | Q5: 0 | R5: 0 | S5: 0.12 | V5: =PV(S5,F5,0,-R5,0) -> 0
A6: =+INPUT!H96 -> 0 | B6: ='GOALS FOR CHILDREN'!B7 -> Heramb Post Graduation | D6: =+INPUT!F96 -> 0 | F6: =IF(+INPUT!J96>0,+INPUT!J96,0) -> 0 | G6: ='GOALS FOR CHILDREN'!G7 -> 0 | H6: =+ASSUMPTIONS!$C$7 -> 0.07 | I6: 0 | M6: 0.07 | N6: 0 | O6: 12 | Q6: 0 | R6: 0 | S6: 0.12 | V6: 0
A7: =+INPUT!H97 -> 0 | B7: ='GOALS FOR CHILDREN'!B8 -> 0 | D7: =+INPUT!F97 -> 0 | F7: =IF(+INPUT!J97>0,+INPUT!J97,0) -> 0 | G7: ='GOALS FOR CHILDREN'!G8 -> 0 | H7: =+ASSUMPTIONS!$C$7 -> 0.07 | I7: 0 | M7: 0.07 | N7: 0 | O7: 1 | Q7: 0 | R7: 0 | S7: =S6 -> 0.12 | V7: 0
A8: =+INPUT!H98 -> 0 | B8: ='GOALS FOR CHILDREN'!B9 -> 0 | D8: =+INPUT!F98 -> 0 | F8: =IF(+INPUT!J98>0,+INPUT!J98,0) -> 0 | G8: ='GOALS FOR CHILDREN'!G9 -> 0 | H8: =+ASSUMPTIONS!$C$7 -> 0.07 | I8: 0 | M8: 0.07 | N8: 0 | O8: 1 | Q8: 0 | R8: 0 | S8: 0.1 | V8: 0
A9: =+INPUT!H99 -> 0 | B9: ='GOALS FOR CHILDREN'!B10 -> 0 | E9: =+INPUT!F99 -> 0 | F9: =IF(+INPUT!J99>0,+INPUT!J99,0) -> 0 | G9: ='GOALS FOR CHILDREN'!G10 -> 0 | H9: =+ASSUMPTIONS!$C$7 -> 0.07 | I9: 0 | M9: 0.07 | N9: 0 | O9: 1 | Q9: 0 | R9: 0 | S9: =S8 -> 0.1 | V9: 0
A10: =+INPUT!H100 -> 0 | B10: ='GOALS FOR CHILDREN'!B11 -> 0 | E10: =+INPUT!F100 -> 0 | F10: =IF(+INPUT!J100>0,+INPUT!J100,0) -> 0 | G10: ='GOALS FOR CHILDREN'!G11 -> 0 | H10: =+ASSUMPTIONS!$C$7 -> 0.07 | I10: 0 | M10: 0.07 | N10: 0 | O10: 1 | Q10: 0 | R10: 0 | S10: =S9 -> 0.1 | V10: 0
A11: =+INPUT!H101 -> 0 | B11: ='GOALS FOR CHILDREN'!B12 -> 0 | E11: =+INPUT!F101 -> 0 | F11: =IF(+INPUT!J101>0,+INPUT!J101,0) -> 0 | G11: ='GOALS FOR CHILDREN'!G12 -> 0 | H11: =+ASSUMPTIONS!$C$7 -> 0.07 | I11: 0 | M11: 0.07 | N11: 0 | O11: 1 | Q11: 0 | R11: 0 | S11: =S10 -> 0.1 | V11: 0
A12: =+INPUT!H102 -> 0 | B12: ='GOALS FOR CHILDREN'!B13 -> 0 | C12: =+INPUT!F102 -> 0 | F12: =IF(+INPUT!J102>0,+INPUT!J102,0) -> 0 | G12: ='GOALS FOR CHILDREN'!G13 -> 0 | H12: =+ASSUMPTIONS!$C$7 -> 0.07 | I12: 0 | M12: 0.1 | N12: 0 | O12: 1 | Q12: 0 | R12: 0 | S12: 0.12 | V12: 0
A13: =+INPUT!H103 -> 0 | B13: ='GOALS FOR CHILDREN'!B14 -> 0 | D13: =+INPUT!F103 -> 0 | F13: =IF(+INPUT!J103>0,+INPUT!J103,0) -> 0 | G13: ='GOALS FOR CHILDREN'!G14 -> 0 | H13: =+ASSUMPTIONS!$C$7 -> 0.07 | I13: 0 | M13: 0.07 | N13: 0 | O13: 1 | Q13: 0 | R13: 0 | S13: 0.12 | V13: 0
A14: ='GOALS FOR CHILDREN'!A15 -> 0 | B14: ='GOALS FOR CHILDREN'!B15 -> 0 | E14: =+INPUT!G104 -> 0 | F14: =IF(+INPUT!J104>0,+INPUT!J104,0) -> 0 | G14: ='GOALS FOR CHILDREN'!G15 -> 0 | H14: =+ASSUMPTIONS!$C$7 -> 0.07 | I14: 0 | M14: 0.1 | N14: 0 | O14: 1 | Q14: 0 | R14: 0 | S14: =S13 -> 0.12 | V14: 0
A15: TOTAL | G15: =SUM(G3:G14) -> 0 | I15: =SUM(I3:I14) -> 0 | Q15: =SUM(Q3:Q14) -> 600000 | R15: =SUM(R3:R14) -> -600000 | T15: =SUM(T3:T14) ->  | U15: =SUM(U3:U14) ->  | V15: =SUM(V3:V14) -> -600000

Sheet GOALS (hidden)
A1: =DATA!G3 -> 2024 | B1: ASPIRATIONAL GOALS / NEEDS & DREAMS | N1: NEW INVESTMENTS TO FILL THE GAPS
A2: SR.NO | B2: GOALS / DREAMS/ NEEDS | C2: GOAL YEAR | D2: NO OF YRS LEFT | E2: PRESENT VALUE | F2: INFLATION RATE (%) | G2: FUTURE VALUE | I2: EXISTING SOURCES | J2: FUTURE VALUE OF EXISTING INVESTMENT VALUE | L2: GAP AMT TO BE PLANNED | N2: INVESTMNT RATE | O2: MONTHLY INVESTMENT | P2: YEARLY INVESTMENTS | Q2: LUMPSUM INVESTMENT
A4: =DATA!A82 -> 1 | B4: =DATA!B82 -> Kirtana's wellness Resort | C4: =DATA!C82 -> 2034 | D4: =DATA!D82 -> 10 | E4: =DATA!F82 -> 0 | F4: =DATA!E82 -> 0.07 | G4: =E4*(1+F4)^(D4) -> 0 | J4: 0 | L4: =G4-J4 -> 0 | N4: 0.1 | O4: =PMT(N4/12,D4*12,0,-L4,1) -> 0 | P4: =PMT(N4,D4,0,-L4,0) -> 0 | Q4: =PV(N4,D4,0,-L4,1) -> 0
A5: =DATA!A83 -> 2 | B5: =DATA!B83 -> Kirtana Yoga Office | C5: =DATA!C83 -> 2029 | D5: =DATA!D83 -> 5 | E5: =DATA!F83 -> 0 | F5: =DATA!E83 -> 0.07 | G5: =E5*(1+F5)^(D5) -> 0 | J5: 0 | L5: 0 | N5: 0.12 | O5: 0 | P5: 0 | Q5: 0
A6: =DATA!A84 -> 3 | B6: =DATA!B84 -> International Tour | C6: =DATA!C84 -> 2029 | D6: =DATA!D84 -> 5 | E6: =DATA!F84 -> 0 | F6: =DATA!E84 -> 0.07 | G6: 0 | J6: 0 | L6: 0 | N6: 0.12 | O6: 0 | P6: 0 | Q6: 0
A7: =DATA!A85 -> 4 | B7: =DATA!B85 -> 0 | C7: =DATA!C85 -> 0 | D7: =DATA!D85 -> -2024 | E7: =DATA!F85 -> 0 | F7: =DATA!E85 -> 0.07 | G7: 0 | J7: 0 | L7: 0 | N7: 0.12 | O7: 0 | P7: 0 | Q7: 0
A8: =DATA!A86 -> 5 | B8: =DATA!B86 -> 0 | C8: =DATA!C86 -> 0 | D8: =DATA!D86 -> -2024 | E8: =DATA!F86 -> 0 | F8: =DATA!E86 -> 0.07 | G8: 0 | J8: 0 | L8: 0 | N8: 0.09 | O8: 0 | P8: 0 | Q8: 0
A9: =DATA!A87 -> 6 | B9: =DATA!B87 -> 0 | C9: =DATA!C87 -> 0 | D9: =DATA!D87 -> -2024 | E9: =DATA!F87 -> 0 | F9: 0.06 | G9: 0 | J9: 0 | L9: 0 | N9: 0.07 | O9: 0 | P9: 0 | Q9: 0
A10: =DATA!A88 -> 7 | B10: =DATA!B88 -> 0 | C10: =DATA!C88 -> 0 | D10: =DATA!D88 -> -2024 | E10: =DATA!F88 -> 0 | F10: =DATA!E88 -> 0.07 | G10: 0 | J10: 0 | L10: 0 | N10: 0.12 | O10: 0 | P10: 0 | Q10: 0
C11: =SUM(C4:C10) -> 6092 | E11: =SUM(E4:E10) -> 0 | G11: =SUM(G4:G10) -> 0 | J11: =SUM(J4:J10) -> 0 | L11: =SUM(L4:L10) -> 0 | O11: =SUM(O4:O10) -> 0 | P11: =SUM(P4:P10) -> 0 | Q11: =SUM(Q4:Q10) -> 0

Sheet SOLUTION (hidden)
A1: Suitable Investments & Insurance Options based on your Need Analisys as per 7 Events of Financial Indipendance Approach.
B2: EVENTS TO BE PLANNED | C2: REQUIRED AMOUNT | D2: EXISTING AMOUNT | E2: GAP AMOUNT TO BE FILLED | F2: TOTAL NEW INVESTMENTS/ PREMIUM REQUIRED | G2: NEW INVESTMENT PLANS / SCHEMES | H2: MINIMUM AMOUNT RECOMMENDED REGULAR | I2: LUMPSUM | J2: AVAILABLE MODES | K2: Type | L2: BALANCE INVESTMENTS PENDING AMOUNT
A4: 1 | B4: JOB LOSS / EMERGENCY PLANNING | C4: ='EMERGENCY FUND'!B4 -> 1465587 | D4: ='EMERGENCY FUND'!B5 -> 400000 | E4: =C4-D4 -> 1065587 | F4: =E4 -> 1065587
G6: TOTAL NEW INVESTMENT INTO BANK FD/ LIQUID FUND FOR EMERGENCY | H6: =SUM(H4:H5) -> 0 | I6: =SUM(I4:I5) -> 0 | L6: =F4-I6 -> 1065587
A7: 2 | B7: MAJOR HEALTH PROBLEMS
B8: BASIC HEALTH PLAN | C8: ='RISK PLANNING'!D8 -> 1000000 | D8: ='RISK PLANNING'!F8 -> 0 | E8: =C8-D8 -> 1000000 | J8: Yearly | K8: Mediclaim
B9: TOP UP PLAN | C9: ='RISK PLANNING'!D9 -> 2000000 | D9: ='RISK PLANNING'!F9 -> 0 | E9: =C9-D9 -> 2000000 | J9: Yearly | K9: Mediclaim
B10: CRITICAL ILLNESS | C10: ='RISK PLANNING'!D10 -> 1000000 | D10: ='RISK PLANNING'!F10 -> 0 | E10: =C10-D10 -> 1000000 | J10: Yearly | K10: CI POLICY
B11: HOSPITAL CASH BENEFIT PLAN | C11: ='RISK PLANNING'!D11 -> 3000 | D11: ='RISK PLANNING'!F11 -> 0 | E11: =C11-D11 -> 3000 | J11: Yearly | K11: HCB POLICY
B12: PARENTS HEALTH INSURANCE | C12: ='RISK PLANNING'!D12 -> 500000 | D12: ='RISK PLANNING'!F12 -> 0 | E12: =C12-D12 -> 500000 | J12: Yearly | K12: Mediclaim
F13: =SUM(F8:F12) -> 0 | G13: TOTAL HEALTH INSURANCE PREMIUM | H13: =SUM(H8:H12) -> 0 | L13: =F13-H13 -> 0
A14: 3 | B14: ACCIDENTAL PERMANENT DISABLITY
B15: ADB /PTD/PPD | C15: ='RISK PLANNING'!D19 -> 23885617 | D15: ='RISK PLANNING'!F19 -> 0 | E15: =C15-D15 -> 23885617 | G15: BUY PA POLICY OF RS. 1.5 Cr. from Bajaj Allianz General Insurance | H15: =F15 -> 0 | J15: YEARLY | K15: PA Policy | L15: =F15-H15 -> 0
A17: 4 | B17: LIFE COVER PROVISION | C17: ='RISK PLANNING'!D26 -> 23885617 | D17: ='RISK PLANNING'!F26 -> 0 | E17: =C17-D17 -> 23885617 | G17: BUY TERM INSURANCE OF 1.5 Cr. SA from ICICI PRU | H17: =F17 -> 0 | J17: YEARLY | K17: Term Plan
J18: YEARLY | K18: Term Plan
G19: TOTAL LIFE COVER PREMIUM | H19: =SUM(H17:H18) -> 0 | L19: =F17-H19 -> 0
A21: 5 | B21: RETIREMENT PLANNING | C21: ='RETIREMENT PLANNING'!E9 -> 0 | D21: ='RETIREMENT PLANNING'!E11 -> 0 | E21: =C21-D21 -> 0 | F21: ='RETIREMENT PLANNING'!E17 -> 0 | G21: START SIP IN ALL WEATHER PORTFOLIO | H21: 30000
G30: TOTAL INVESTMENT FOR RETIREMENT | H30: =SUM(H21:H29) -> 30000 | I30: =SUM(I21:I29) -> 0 | L30: =F21-H30 -> -30000
A32: 6 | B32: CHILDREN EDUCATION & MARRIAGE | C32: ='EDUCATION & MARRIAGE'!I15 -> 0 | D32: ='EDUCATION & MARRIAGE'!Q15 -> 600000 | E32: =C32-D32 -> -600000 | F32: ='EDUCATION & MARRIAGE'!T15 ->  | G32: START ADDITIONAL FRESH SIP IN ALL WEATHER PORTFOLIO | H32: 5000
G41: TOTAL INVESTMENT FOR EDUCATION & MARRIAGE | H41: =SUM(H32:H40) -> 5000 | I41: =SUM(I32:I40) -> 0 | L41: =F32-H41 -> 
A43: 7 | B43: ASPIRATIONAL GOALS DREAMS PLANNING
B44: =GOALS!B4 -> Kirtana's wellness Resort | C44: =GOALS!G4 -> 0 | D44: =GOALS!J4 -> 0 | E44: =C44-D44 -> 0 | F44: =GOALS!O4 -> 0 | G44: START SIP IN HYBRID FUND | H44: 8000
H47: =SUM(H44:H46) -> 8000 | I47: =SUM(I44:I46) -> 0 | L47: =F44-H47 -> -8000
B48: =GOALS!B5 -> Kirtana Yoga Office | C48: =GOALS!G5 -> 0 | D48: =GOALS!J5 -> 0 | E48: =C48-D48 -> 0 | F48: =GOALS!O5 -> 0
H51: =SUM(H48:H50) -> 0 | I51: =SUM(I48:I50) -> 0 | L51: =F48-H51 -> 0
B52: =GOALS!B6 -> International Tour | C52: =GOALS!G6 -> 0 | D52: =GOALS!J6 -> 0 | E52: =C52-D52 -> 0 | F52: =GOALS!O6 -> 0
H55: =SUM(H52:H54) -> 0 | I55: =SUM(I52:I54) -> 0 | L55: =F52-H55 -> 0
B56: =GOALS!B7 -> 0 | C56: =GOALS!G7 -> 0 | D56: =GOALS!J7 -> 0 | E56: =C56-D56 -> 0 | F56: =GOALS!O7 -> 0
H59: =SUM(H56:H58) -> 0 | I59: =SUM(I56:I58) -> 0 | L59: =F56-H59 -> 0
B60: =GOALS!B8 -> 0 | C60: =GOALS!G8 -> 0 | D60: =GOALS!J8 -> 0 | E60: =C60-D60 -> 0 | F60: =GOALS!O8 -> 0 | H60: 0
H63: =SUM(H60:H62) -> 0 | I63: =SUM(I60:I62) -> 0 | L63: =F60-H63 -> 0
B64: =GOALS!B9 -> 0 | C64: =GOALS!G9 -> 0 | D64: =GOALS!J9 -> 0 | E64: =C64-D64 -> 0 | F64: =GOALS!O9 -> 0 | H64: 0 | I64: 0
H67: =SUM(H64:H66) -> 0 | I67: =I64 -> 0 | L67: =F64-H67 -> 0
B68: =GOALS!B10 -> 0 | C68: =GOALS!G10 -> 0 | D68: =GOALS!J10 -> 0 | E68: =C68-D68 -> 0 | F68: =GOALS!O10 -> 0
H71: =SUM(H68:H70) -> 0 | I71: =SUM(I68:I70) -> 0 | L71: =F68-H71 -> 0
B73: TOTAL OF ALL ASPIRATIONAL GOALS / DREAMS/ NEEDS | C73: =C68+C64+C60+C56+C52+C44 -> 0 | D73: =D68+D64+D60+D56+D52+D44 -> 0 | E73: =E68+E64+E60+E56+E52+E44 -> 0 | F73: =F68+F64+F60+F56+F52+F44 -> 0 | H73: =SUM(H71,H67,H63,H59,H55,H51,H47) -> 8000 | I73: =SUM(I71,I67,I63,I59,I55,I51,I47) -> 0 | L73: =F73-H73 -> -8000
G75: MONTHLY AVERAGE SURPLUS AMOUNT BEFORE PLANNING | H75: ='SURPLUS & NETWORTH'!E8 -> 287157
G77: SOLUTION FOR YOUR FINANCIAL FREEDOM | H77: MONTHLY | I77: LUMPSUM
F78: 1 | G78: FOR EMERGENCY LIQUIDITY PROVISION | H78: =H6 -> 0 | I78: =I6 -> 0
F79: 2 | G79: FOR WEALTH PROTECTION IN CASE OF MAJOR HEALTH PROBLEMS & HOSPITALISATION | H79: =H13/12 -> 0
F80: 3 | G80: FOR INCOME PROTECTION IN CASE OF ACCIDENT DISABLITY | H80: =H15/12 -> 0
F81: 4 | G81: FOR INCOME PROTECTION IN CASE OF DEATH | H81: =H19/12 -> 0
F82: 5 | G82: FOR GUARANTEED INCOME PROVISION AFTER RETIRMENT | H82: =H30 -> 30000 | I82: =I30 -> 0
F83: 6 | G83: FOR CHILDREN HIGHER EDUCATION & MARRIAGE | H83: =H41 -> 5000 | I83: =I41 -> 0
F84: 7 | G84: FOR MAKING PROVISION FOR ASPIRATIONAL GOALS | H84: =H73 -> 8000 | I84: =I73 -> 0
G85: TOTAL NEW INVESTMENTS RECOMMENDED TO PLAN FOR FINANCIAL FREEDOM | H85: =SUM(H78:H84) -> 43000 | I85: =SUM(I78:I84) -> 0
G86: MONHLY SURPLUS AFTER PLANNING FOR FINANCIAL FREEDOM EVENTS | H86: =H75-H85 -> 244157
F88: IMMEDIATE PLAN OF ACTION TO EXECUTE THE PLAN
F89: 1
F90: 2
F91: 3
F92: 4
F93: 5
F94: 6
F95: 7
F96: 8
F97: 9
F98: 10

Sheet EXECUTION SHEET (hidden)
A1: SR.NO | B1: GOAL YEARWISE | C1: SCHEME NAME | D1: INVESTMENT ALLOCATED EXISTING/NEW | E1: DEBT/ | F1: SUB | G1: OPTION | H1: NAME OF THE GOAL | I1: P.V REQUIRED TODAY | J1: F.V REQUIRED IN GOAL YEAR | K1: LUMPSUM AMT INVESTED | L1: SIP AMT | M1: SIP START | N1: TAX BENEFITS | O1: WHEN TO WITHDRAW | P1: REMARKS, IF ANY
E2: EQUITY | F2: TYPE | G2: GR/DP/DR | L2: P.M | M2: DATE
A3: 1
A4: 2
A5: 3
A6: 4
A7: 5
A8: 6
A9: 7
A10: 8
A11: 9
A12: 10
A13: 11
A14: 12
A15: 13
A16: 14
A17: 15
A18: 16
A19: 17
A20: 18
A21: 19
A22: 20
H23: TOTAL
